{"text_format":"1","workbook":"xlsx","n_sheets":23,"sheets":["Cover Page","Facility Info","Operational Data","Operational Summary","Perf. Form 1","Energy Form 1","Permit Compliance","Improvements","Public Liasion","CO2 N2O","Residues","Water","Air (periodic)","Air (CEMS)","HCl","SO2","NOx","TOC","Particulates","CO 95% 10 min","N20","NH3","Template changes log"],"not_rendered":{"charts":8,"images":3,"macros":1,"external_links":0,"defined_names":24,"comments":0,"pivot_tables":0},"unopened":[],"bounds":{"document_bytes":16777216,"sheet_cells":100000,"rows_first":2000,"rows_last":500,"rows_between":2000,"halvings":0,"cell_chars":16384,"cell_head_chars":4096},"cells_cut":0,"cells_raw":0,"read":"whole","date_system":"1900"}

{"sheet":"Cover Page","index":0,"n_rows":53,"n_cols":11,"rows_kept":53,"cut":false,"hidden":false,"merged":[[48,2,48,3],[48,6,48,8],[52,2,52,3],[36,1,36,8],[40,2,40,8],[42,2,42,4],[44,2,44,4],[46,2,46,3],[46,6,46,8],[13,10,18,12],[34,1,34,8],[0,3,5,6],[7,1,23,8],[28,1,28,8],[30,1,30,8],[32,1,32,8]]}
[null,null,null,"Add company logo"]
[null,null,null,null,null,null,null,null,null,null,"Template version 25.1a (for incinerators) - 27/11/25"]
[]
[null,null,null,null,null,null,null,null,null,null,"Note that there is another version of this template available for co-incinerators"]
[]
[]
[]
[null,"Add photo"]
[]
[]
[]
[]
[null,null,null,null,null,null,null,null,null,null,"Notes:"]
[null,null,null,null,null,null,null,null,null,null,"This template may require adjustments by individual operators to meet specific reporting requirements as defined in the site Permit(s)"]
[]
[]
[]
[]
[]
[]
[]
[]
[]
[]
[]
[]
[]
[]
[null,"Annual Performance Report 2025"]
[]
[null,"Permit EPR/WP3438HZ"]
[]
[null,"Suffolk EfW"]
[]
[]
[]
[null,"SUEZ Recycling and Recovery Suffolk Ltd"]
[]
[null,"Year:",2025]
[]
[null,"Address:","Lodge Lane, Great Blakenham, Suffolk, IP6 0JE"]
[]
[null,"Tel: ","01473 839149"]
[]
[null,"Email: ","john.flounders@suez.com"]
[]
[null,"Prepared by:","Robert Taylor\nRichard Watkins",null,null,"Position:","Snr. Technical Plant Eng.\nEIR Manager"]
[]
[null,"Approved by:","John Flounders",null,null,"Position:","Plant Manager"]
[]
[null,"Version:",1]
[]
[null,"Issue Date:","2026-01-28"]

{"sheet":"Facility Info","index":1,"n_rows":22,"n_cols":11,"rows_kept":22,"cut":false,"hidden":false,"merged":[[4,0,17,8],[21,0,53,8],[4,10,13,13],[21,10,30,13]]}
[{"$f":"+'Cover Page'!$B$29","v":"Annual Performance Report 2025"},null,null,null,{"$f":"+'Cover Page'!$B$33","v":"Suffolk EfW"}]
[]
["Plant Description and Design",null,null,null,null,null,null,null,null,null,"Notes:"]
[]
["This non-hazardous waste incinerator operates 24/7 across two furnace lines and can receive up to 295,000 tonnes of municipal waste and commercial/Industrial waste per annum. The heat produced by waste incineration is used to raise superheated steam which generates approximately 185,000 MWh/annum of electricity.\n\nActivities associated with the incineration are receipt and storage of municipal waste and commercial/industrial waste, production of steam and electricity, abatement of flue gas and handling of Incinerator Bottom Ash (IBA) and Air Pollution Control Residue (APCR).\n\nSuffolk EfW commissioning finished on 1st December 2014, when the plant was handed over from the EPC\ncontractor to SUEZ UK. Permit conditions have applied since this date. The data included in this report corresponds to the following period; 01 January 2025 to 31 December 2025.",null,null,null,null,null,null,null,null,null,"Include summary of plant design, design capacity, no. of combustion lines, electrical and heat capacity and any other general information that describes the facility, its location and purpose "]
[]
[]
[]
[]
[]
[]
[]
[]
[]
[]
[]
[]
[]
[]
["Summary of Operational Processes and Procedures"]
[]
["RECEPTION HALL & BUNKER\nIncoming waste is delivered to site by refuse collection trucks. It is then checked in, weighed and delivered\ninto the reception hall.  A large reception hall allows for refuse collection trucks to manoeuvre and tip waste safely. Air needed for combustion is drawn into the furnace from here so that negative pressure is maintained in order to avoid odour and dust escaping the building.  Waste vehicles reverse to a wheel stop and tip their loads into a large concrete bunker. Mixing of waste occurs as the cranes driver sorts the waste looking for unsuitable material to be removed, and to improve the homogeneity of the incinerator feedstock.\n\nCONTROL ROOM\nThe plant’s control room centralises the operation of all equipment, including the grab cranes used to mix and load waste into a hopper that feeds the furnace. All on-site functions are monitored automatically and manually.  Its systems verify in real time that equipment is functioning properly, continuously monitor the combustion gas, and maximise the efficiency of the entire EfW process.\n\nGRATE AND BOILER\nWaste is lifted into the charging hoppers by the crane. From here it falls into the furnace-charging chute and then is introduced onto the grate system by hydraulic feeders for incineration. An auxiliary burner can be used to help keeping the temperature above 850°C if required. The thermal energy released from the burning is used to convert water to super-heated steam along a boiler composed of 6 vertical passes. At high pressure, this steam drives a turbine to generate electricity.\n\nELECTRICITY GENERATION\nElectricity is generated at 11kv, with an electric production of 209,924 MWh during 2025 and exporting 186,480 MWh/annum to the national grid.\n\nINCINERATOR BOTTOM ASH (IBA)\nAsh left on the grate after incineration is carried by conveyor, after quenching, to the IBA processing facility.  Up to 65,000 tonne of IBA is processed on site by the removal of ferrous and non-ferrous metal, stabilised and separated into fraction sizes of IBA prior to the export from site of the processed IBA and metals for re-use.\n\nEMISSION CONTROL & AIR POLLUTION CONTROL RESIDUE (APCR)\nThe gases from the furnace are subject to a rigorous cleaning process involving urea as selective non-catalytic reduction (SNCR), lime and active carbon injections. This removes oxides of nitrogen, acidic gases, dioxins, and heavy metals from the gas stream.  The cleaned gas passes through fine-fabric bag filters to remove solid particles before it is emitted through the stack. The resultant APCR residue, or fly-ash, contains particles from the incineration process, lime used in the flue gas treatment, salts and carbon dust. It is stored in a sealed silo until it is tankered away for recycling.\n\nEMISSIONS MONITORING\nAs they pass through the stack, the residual flue gases from the process are continuously monitored before release. This data is relayed automatically to the control room.",null,null,null,null,null,null,null,null,null,"Include summary of key processes and procedures such as (but not limited to); waste reception, control rooms, grate, bed and boiler, energy & heat  generation, cooling systems, residue management, emission controls, health and safety systems, maintenance"]

{"sheet":"Operational Data","index":2,"n_rows":65,"n_cols":10,"rows_kept":65,"cut":false,"hidden":false,"merged":[[4,9,23,9],[25,9,29,9],[53,0,57,0],[34,1,39,1],[3,1,3,2],[10,1,22,1],[26,1,28,1],[7,2,7,3]]}
[{"$f":"+'Cover Page'!$B$29","v":"Annual Performance Report 2025"},null,null,null,{"$f":"+'Cover Page'!$B$33","v":"Suffolk EfW"}]
[]
["Operational Data"]
["Plant Size:",295000,null,"tonnes pa",null,null,null,null,null,"Notes:"]
["Nominal net thermal input:",89,"MWth",null,null,null,null,null,null,"* Export capacity = nominal generation capacity at the generator terminals minus nominal parasitic load.\n\n** CHP and district heating plants only - put N/A if no heat export.\n\n***  Combusted tonnage = tonnes delivered in period + (tonnes in bunker at start of period – tonnes in bunker at end of period), or equivalent calculation depending on plant type\n\n**** Availability Definition: The availability of a line is to be calculated by the number of hours the line reported Continuously Monitored emission levels to the Regulator through the calendar year divided by the total number of hours in that year. \n\nThe overall plant availability is calculated as the mean of all lines in the plant. For clarity this includes periods of abnormal operation.  \n\nRationale: The primary function of an Energy from Waste facility is the disposal of waste. It follows therefore that the availability of a plant is determined by the period of time a facility spends undertaking this activity.\n\n*****NCV of waste: This should be completed for all plants which have a boiler. Calculate using total thermal power produced by boiler/boiler efficiency, or other suitable calculation. \n"]
["Nominal electrical export capacity*:",25.2,"MWe"]
["Nominal heat export capacity**:","N/A","MWth"]
["No. of combustion lines:",2,"No. of steam turbines:",null,1]
[]
["Waste types received","Unit","Q1","Q2","Q3","Q4","Year Total","%"]
["Household / Local Authority","tonnes",68681,48105,71383,74184,{"$f":"SUM(C11:F11)","v":262353},{"$f":"IF(G11>0,G11/$G$21,\"-\")","v":0.91400411793601521}]
["Commercial & Industrial ",null,5059,1805,3329,6298,{"$f":"SUM(C12:F12)","v":16491},5.7452523542261102E-2]
["Hazardous ",null," -   "," -   "," -   "," -   ",0,"-"]
["Clinical",null,2184,259,2388,3362,8193,2.8543358521723679E-2]
["Waste wood (biomass) ",null,null,null,null,null,0,"-"]
["Refuse Derived Fuel (incl. SRF) - H'hold/LA",null,null,null,null,null,{"$f":"SUM(C16:F16)","v":0},"-"]
["Refuse Derived Fuel (incl. SRF) - C&I",null,null,null,null,null,0,"-"]
["Other [Please specify]",null,null,null,null,null,0,"-"]
["Other [Please specify]",null,null,null,null,null,0,"-"]
["Other [Please specify]",null,null,null,null,null,0,"-"]
["Total waste received",null,{"$f":"SUM(C11:C20)","v":75924},{"$f":"SUM(D11:D20)","v":50169},{"$f":"SUM(E11:E20)","v":77100},{"$f":"SUM(F11:F20)","v":83844},287037]
["Rejected Waste ",null,null,null,null,null,{"$f":"SUM(C22:F22)","v":0},{"$f":"IF(G22>0,G22/$G$21,\"-\")","v":"-"}]
["Unprocessed waste transferred out",null,null,null,null,null,{"$f":"SUM(C23:F23)","v":0},{"$f":"IF(G23>0,G23/$G$21,\"-\")","v":"-"}]
["Total waste combusted ***",null,{"$f":"C21+2898-2974","v":75848},{"$f":"D21+2974-1592","v":51551},{"$f":"E21+1592-964","v":77728},{"$f":"F21+964-3369","v":81439},{"$f":"SUM(C24:F24)","v":286566},0.99839999999999995]
[]
["Energy Usage / Export","Unit","Q1","Q2","Q3","Q4","Year Total","KWh/te",null,"Password for protected cells\nA password has been set to prevent accidental  editing of cells with formulae. \nIf you still need to make an edit for some reason then the password = 1234"]
["Power generated at generator terminals","MWh",56721.23472,35922.791659200004,58652.131679999991,58628.328479999996,{"$f":"SUM(C27:F27)","v":209924.48653919998},{"$f":"IF(G27>0,G27*1000/$G$24,\"-\")","v":732.55196547810965}]
["Power exported to grid and other external user(s)",null,50618.168899999997,31444.823600000007,52101.782500000001,52167.248800000001,{"$f":"SUM(C28:F28)","v":186332.02380000002},{"$f":"IF(G28>0,G28*1000/$G$24,\"-\")","v":650.22376625280049}]
["Power imported",null,null,191.65899999999999,null,null,191.65899999999999,{"$f":"IF(G29>0,G29*1000/$G$24,\"-\")","v":0.66881276913520793}]
["Indicative parasitic load","%",{"$f":"IF(C27>0,(C27-C28)/C27,\"-\")","v":0.10759754878622296},{"$f":"IF(D27>0,(D27-D28)/D27,\"-\")","v":0.12465534699203054},0.11168134886789832,0.11020405744987385,{"$f":"IF(G27>0,1-G28/(G27+G29),\"-\")","v":0.11319511729174914}]
["Thermal Energy Exported **",null,null,null,null,null,{"$f":"SUM(C31:F31)","v":0},{"$f":"IF(G31>0,G31*1000/$G$24,\"-\")","v":"-"}]
["R1 value (if applicable)","R1","-","-","-","-"]
[]
["Waste Disposal & Recovery","Unit","Q1","Q2","Q3","Q4","Year Total","% inputs"]
["APC Residues - produced","tonnes",1957.02,1112.74,1714.18,1756.14,{"$f":"SUM(C35:F35)","v":6540.0800000000008},{"$f":"IF(G35>0,G35/$G$24,\"-\")","v":2.2822246882044629E-2}]
["IBA - produced",null,11990.580000000002,11856.56,12420.34,11836.740000000002,48104.22,{"$f":"IF(G36>0,G36/$G$24,\"-\")","v":0.16786436632398818}]
["Metals recycling",null,2494.14,1973.88,2455.46,2380.06,{"$f":"SUM(C37:F37)","v":9303.5400000000009},3.2465610016540698E-2]
["Other",null,0,0,0,0,{"$f":"SUM(C38:F38)","v":0},"-"]
["Other",null,0,0,0,0,0,"-"]
["Other",null,0,0,0,0,0,"-"]
[]
["Raw Material Usage","Unit","Q1","Q2","Q3","Q4","Year Total","Qty./te"]
["Mains Water","m3",10370,7602,7064,6974,{"$f":"SUM(C43:F43)","v":32010},{"$f":"IF(G43>0,G43/$G$24,\"-\")","v":0.11170201628944118}]
["Other Water","ltrs",null,null,null,null,0,{"$f":"IF(G44>0,G44/$G$24,\"-\")","v":"-"}]
["Ammonia","kgs",null,null,null,null,0,"-"]
["Urea","kgs",128327.22381600001,89341.727063999992,121701.76968,129420.10533600001,{"$f":"SUM(C46:F46)","v":468790.82589600002},1.635891298674651]
["Activated Carbon","kgs",24403.041450500488,19886.338470972169,39972.84211349488,37970,122232.22203496753,0.42654125763338124]
["Lime / hydrated lime","kgs",811404.02217600006,427233.17051280005,635403.1368312001,568692.72610560001,2442733.0556256003,8.5241551880739532]
["Fuel oil","ltrs",29275,115406,198,25779,170658,0.59552773183141061]
["Gas","m3",null,null,null,null,0,"-"]
["Other",null,null,null,null,null,0,"-"]
[]
["Summary ","Line/Unit","Q1","Q2","Q3","Q4","Year Total",null,"Hrs in year "]
["Availability of waste combustion by line, hrs ****",1,2094.3020000000001,1371.5839999999998,2208,2207.98,{"$f":"SUM(C54:F54)","v":7881.866},{"$f":"+G54/$I$54","v":0.89975639269406393},8760,"Change this figure to 8784 in a leap year"]
[null,2,2120.8229999999999,1544.145,2208,2180.1669999999999,8053.1350000000002,{"$f":"+G55/$I$54","v":0.91930764840182655}]
[null,3,null,null,null,null,0,0]
[null,4,null,null,null,null,0,0]
[null,5,null,null,null,null,{"$f":"SUM(C58:F58)","v":0},0]
["Hours of turbine operations, hrs",1,2159.567,1925.617,2208,2208,8501.1840000000011,0.97045479452054806]
["Hours of turbine operations, hrs",2,null,null,null,null,0,0]
["Hours of heat / steam export**","hours",null,null,null,null,0,{"$f":"IF(B61>0,G60/I54,\"n/a\")","v":0}]
["Net calorific value of waste*****","MJ/kg",{"$f":"9567.92614327673/1000","v":9.5679261432767309},{"$f":"9453.44291955739/1000","v":9.453442919557391},{"$f":"9339.60794784946/1000","v":9.3396079478494602},{"$f":"9207.07522216043/1000","v":9.2070752221604302},{"$f":"AVERAGE(C62:F62)","v":9.3920130582110026}]
["Abnormal operation events","qty.",0,0,0,0,0,{"$f":"IF(G63>0,\"yes\",\"no\")","v":"no"}]
["Abnormal operation duration","hours",0,0,0,0,0,{"$f":"+(G64)/I54","v":0}]
["Permit Breaches","qty.",null,1,null,null,1,{"$f":"IF(G65>0,\"yes\",\"no\")","v":"yes"}]

{"sheet":"Operational Summary","index":3,"n_rows":37,"n_cols":11,"rows_kept":37,"cut":false,"hidden":false,"merged":[[29,10,42,13],[4,0,26,8],[4,10,13,13],[28,1,28,8],[29,2,29,8],[30,2,30,8],[31,2,31,8],[32,2,32,8],[33,2,33,8],[34,2,34,8],[35,2,35,8],[36,2,36,8],[37,2,37,8],[38,2,38,8],[44,2,44,8],[39,2,39,8],[40,2,40,8],[41,2,41,8],[42,2,42,8],[43,2,43,8]]}
[{"$f":"+'Cover Page'!$B$29","v":"Annual Performance Report 2025"},null,null,null,{"$f":"+'Cover Page'!$B$33","v":"Suffolk EfW"}]
[]
["Summary of Plant Operations and Maintenance during the reporting year",null,null,null,null,null,null,null,null,null,"Notes:"]
[]
["Operation during 2025 was improved (c.f. 2024) in terms of unplanned shutdowns but the planned outage was extended to complete additional planned works which resulted in a similar availability for the year.\n\nOnline explosive cleaning was undertaken as a trial to maintain boiler efficiency and reduce reagent demands and was deemed reasonably successful.\n\nThe major outage involved extensive boiler replacements and upgrades.  4m of waterwall tube in pass 1 was replaced and reinstated with Inconel overlay, as opposed to refractory tiles, for corrosion protection.  Economiser 8 was replaced and the lower 'final economiser' bank was also replaced.  The grate bar surface was replaced in its entirety with an updated design to be more resistant to damage from canister explosions.",null,null,null,null,null,null,null,null,null,"Include summary of key operational and/or maintenance activity undertaken in the year, such as any major component upgrades and/or replacements "]
[]
[]
[]
[]
[]
[]
[]
[]
[]
[]
[]
[]
[]
[]
[]
[]
[]
[]
[]
[]
[]
[]
[]
[{"$f":"+'Cover Page'!C39","v":2025},"Plant shut-downs"]
["Start date","End date","Reason for shut-down",null,null,null,null,null,null,null,"Provide a very brief reason for plant shut-down e.g. \"Shut-down prior to major outage\"; \"Emergency shut-down due to boiler tube leak\". All emergency shut-downs must be listed (irrespective of whether or not they were required to be reported to the EA). \n\nThere is no need to include periods of hot-standby here (e.g. to clear feed chute hopper blockages).\n\nFor clinical waste incinerators which require regular shut-downs for boiler cleaning, there is no need to record these here (only those prior to major outages, and emergency shut-downs). "]
["2025-01-10","2025-01-12","Controlled Shutdown to replace grate bars damaged by explosion"]
["2025-03-24","2025-03-27","Controlled Shutdown to repair boiler tube leak"]
["2025-04-18","2025-04-20","Controlled Shutdown to repair boiler tube leak"]
["2025-04-21","2025-05-22","Controlled shutdown for L1 major outage"]
["2025-05-13","2025-06-09","Controlled shutdown for L2 major outage"]
["2025-05-28","2025-05-29","Controlled shutdown to clear fly ash handling blockage"]
["2025-11-01","2025-11-01","Controlled shutdown to clear fly ash handling blockage"]

{"sheet":"Perf. Form 1","index":4,"n_rows":54,"n_cols":10,"rows_kept":54,"cut":false,"hidden":false,"merged":[[47,0,47,1],[49,0,49,9],[50,0,51,9],[38,0,38,9],[39,0,40,9],[43,0,43,1],[43,2,43,9],[45,0,45,1],[46,0,46,1],[36,0,36,3],[36,4,36,5],[36,7,36,8],[37,0,37,3],[37,4,37,5],[37,7,37,8],[34,0,34,3],[34,4,34,5],[34,7,34,8],[35,0,35,3],[35,4,35,5],[35,7,35,8],[31,0,31,3],[31,7,31,8],[32,0,32,3],[32,4,32,5],[32,7,32,8],[33,0,33,3],[33,4,33,5],[33,7,33,8],[23,0,23,3],[23,4,23,5],[23,6,23,7],[23,8,23,9],[25,0,25,9],[26,0,28,9],[21,0,21,1],[21,2,21,3],[21,4,21,5],[21,6,21,7],[21,8,21,9],[22,0,22,3],[22,4,22,5],[22,6,22,7],[22,8,22,9],[19,0,19,1],[19,2,19,3],[19,4,19,5],[19,6,19,7],[19,8,19,9],[20,0,20,1],[20,2,20,3],[20,4,20,5],[20,6,20,7],[20,8,20,9],[17,0,17,1],[17,2,17,3],[17,4,17,5],[17,6,17,7],[17,8,17,9],[18,0,18,1],[18,2,18,3],[18,4,18,5],[18,6,18,7],[18,8,18,9],[15,0,15,1],[15,2,15,3],[15,4,15,5],[15,6,15,7],[15,8,15,9],[16,0,16,9],[13,0,13,1],[13,2,13,3],[13,4,13,5],[13,6,13,7],[13,8,13,9],[14,0,14,3],[14,4,14,5],[14,6,14,7],[14,8,14,9],[11,0,11,1],[11,2,11,3],[11,4,11,5],[11,6,11,7],[11,8,11,9],[12,0,12,1],[12,2,12,3],[12,4,12,5],[12,6,12,7],[12,8,12,9],[9,0,9,9],[10,0,10,1],[10,2,10,3],[10,4,10,5],[10,6,10,7],[10,8,10,9],[2,0,2,4],[2,6,2,8],[3,1,3,4],[5,3,5,4],[5,6,5,7],[8,0,8,1],[8,2,8,3],[8,4,8,5],[8,6,8,7],[8,8,8,9]]}
[{"$f":"+'Cover Page'!C39","v":2025}," Annual Reporting Performance Form 1"]
[]
[{"$f":"+'Cover Page'!B31","v":"Permit EPR/WP3438HZ"},null,null,null,null,"Operator: ",{"$f":"+'Cover Page'!B37","v":"SUEZ Recycling and Recovery Suffolk Ltd"}]
["Facility:",{"$f":"+'Cover Page'!B33:I33","v":"Suffolk EfW"},null,null,null,"Form:","Performance 1"]
[]
["Reporting  Period from: ",null,null,"2025-01-01",null,"to:","2025-12-31"]
[]
[{"$f":"+A1","v":2025},"Annual Reporting of Waste Disposal and Recovery"]
["Waste Description",null,"Disposal Route(s)",null,"Disposal Tonnes",null,"Recovery Tonnes",null,"% / tonne of waste incinerated"]
["1) Hazardous Wastes"]
["APC Residues",null,"D5",null,{"$f":"'Operational Data'!G35","v":6540.0800000000008},null,null,null,{"$f":"IF((E11+G11)>0,(E11+G11)/'Operational Data'!$G$24, \"-\")","v":2.2822246882044629E-2}]
["IBA",null,null,null,null,null,null,null,{"$f":"IF((E12+G12)>0,(E12+G12)/'Operational Data'!$G$24, \"-\")","v":"-"}]
[null,null,null,null,null,null,null,null,{"$f":"IF((E13+G13)>0,(E13+G13)/'Operational Data'!$G$24, \"-\")","v":"-"}]
[null,null,null,null,null,null,null,null,{"$f":"IF((E14+G14)>0,(E14+G14)/'Operational Data'!$G$24, \"-\")","v":"-"}]
["Total Hazardous Waste",null,null,null,{"$f":"SUM(E11:F14)","v":6540.0800000000008},null,{"$f":"SUM(G11:H14)","v":0},null,{"$f":"IF((E15+G15)>0,(E15+G15)/'Operational Data'!$G$24, \"-\")","v":2.2822246882044629E-2}]
[]
["2) Non-Hazardous Wastes"]
["IBA",null,"R10",null,null,null,{"$f":"'Operational Data'!G36","v":48104.22},null,{"$f":"IF((E18+G18)>0,(E18+G18)/'Operational Data'!$G$24, \"-\")","v":0.16786436632398818}]
["Ferrous Metal",null,"R04",null,null,null,6089.32,null,{"$f":"IF((E19+G19)>0,(E19+G19)/'Operational Data'!$G$24, \"-\")","v":2.1249275908516711E-2}]
["Process Water",null,"D09",null,909.3,null,null,null,{"$f":"IF((E20+G20)>0,(E20+G20)/'Operational Data'!$G$24, \"-\")","v":3.1730910156822509E-3}]
["Non-ferrous",null,"R04",null,null,null,3214,null,{"$f":"IF((E21+G21)>0,(E21+G21)/'Operational Data'!$G$24, \"-\")","v":1.121556639657182E-2}]
[null,null,null,null,null,null,null,null,{"$f":"IF((E22+G22)>0,(E22+G22)/'Operational Data'!$G$24, \"-\")","v":"-"}]
["Total Non-Hazardous Waste",null,null,null,{"$f":"SUM(E18:F22)","v":909.3},null,{"$f":"SUM(G18:H22)","v":57407.54},null,{"$f":"IF((E23+G23)>0,(E23+G23)/'Operational Data'!$G$24, \"-\")","v":0.20350229964475899}]
["TOTAL WASTE",null,null,null,{"$f":"+E23+E15","v":7449.380000000001},null,{"$f":"+G23+G15","v":57407.54},null,{"$f":"IF((E24+G24)>0,(E24+G24)/'Operational Data'!$G$24, \"-\")","v":0.22632454652680359}]
[]
["Operator’s comments :"]
[]
[]
[]
[]
[{"$f":"+A1","v":2025},"Annual Reporting of Water and Other Raw Material Usage"]
["Raw Material",null,null,null,"Usage",null,"Unit","Specific Usage",null,"Unit"]
["Mains Water",null,null,null,{"$f":"+'Operational Data'!G43","v":32010},null,"m3",{"$f":"IF(E33>0,E33/'Operational Data'!$G$24,\"-\")","v":0.11170201628944118},null,"m3/te"]
["Total Water",null,null,null,{"$f":"+'Operational Data'!G44+'Operational Data'!G43","v":32010},null,"m3",{"$f":"IF(E34>0,E34/'Operational Data'!$G$24,\"-\")","v":0.11170201628944118},null,"m3/te"]
["Urea / Ammonia",null,null,null,{"$f":"+'Operational Data'!G46","v":468790.82589600002},null,"kg",{"$f":"IF(E35>0,E35/'Operational Data'!$G$24,\"-\")","v":1.635891298674651},null,"kg/te"]
["Activated Carbon",null,null,null,{"$f":"+'Operational Data'!G47","v":122232.22203496753},null,"kg",{"$f":"IF(E36>0,E36/'Operational Data'!$G$24,\"-\")","v":0.42654125763338124},null,"kg/te"]
["Lime / hydrated lime / Sodium Bicarb.",null,null,null,{"$f":"+'Operational Data'!G48","v":2442733.0556256003},null,"kg",{"$f":"IF(E37>0,E37/'Operational Data'!$G$24,\"-\")","v":8.5241551880739532},null,"kg/te"]
[]
["Operator’s comments :"]
[]
[]
[]
[{"$f":"+A31","v":2025},"Annual Reporting of other performance indicators "]
["Parameter",null,"Results by Line"]
[null,null,"A1","A2","A3","A4","A5",null,"Turbine 1","Turbine 2"]
["Operating hours for the year, hours",null,7881.866,8053.1350000000002,null,null,null,null,{"$f":"'Operational Data'!G59","v":8501.1840000000011}]
["Number of periods of abnormal operation, qty.",null,0,0]
["Cumulative hours of abnormal operation for this year, hours",null,0,0]
[]
["Operator’s comments :"]
[]
[]
[]
["Signed: ","Richard Watkins",null,null,null,null,"Date:","2026-01-26"]

{"sheet":"Energy Form 1","index":5,"n_rows":29,"n_cols":8,"rows_kept":29,"cut":false,"hidden":false,"merged":[[15,0,15,2],[15,3,15,4],[15,6,15,8],[17,0,17,8],[18,0,24,8],[13,0,13,2],[13,3,13,4],[13,6,13,8],[14,0,14,2],[14,3,14,4],[14,6,14,8],[11,0,11,2],[11,3,11,4],[11,6,11,8],[12,0,12,2],[12,3,12,4],[12,6,12,8],[9,0,9,2],[9,3,9,4],[9,6,9,8],[10,0,10,2],[10,3,10,4],[10,6,10,8],[2,6,2,8],[4,1,4,4],[6,3,6,4],[6,6,6,7],[8,0,8,2],[8,3,8,4],[8,6,8,8]]}
[{"$f":"+'Cover Page'!C39","v":2025}," Annual Reporting of Energy Usage/Export"]
[]
[{"$f":"+'Cover Page'!B31","v":"Permit EPR/WP3438HZ"},null,null,null,null,"Operator: ",{"$f":"+'Cover Page'!B37","v":"SUEZ Recycling and Recovery Suffolk Ltd"}]
[]
["Facility:",{"$f":"+'Cover Page'!B33:I33","v":"Suffolk EfW"},null,null,null,"Form:","Energy 1"]
[]
["Reporting  Period from: ",null,null,{"$f":"+'Perf. Form 1'!D6:E6","v":"2025-01-01"},null,"to:",{"$f":"+'Perf. Form 1'!G6:H6","v":"2025-12-31"}]
[]
["Energy Source",null,null,"Energy Usage",null,"Unit","Specific Usage (KWh/tonne incinerated"]
["Electricity Produced",null,null,{"$f":"+'Operational Data'!G27","v":209924.48653919998},null,"MWh",{"$f":"+'Operational Data'!H27","v":732.55196547810965}]
["Electricity Imported   ",null,null,{"$f":"+'Operational Data'!G29","v":191.65899999999999},null,"MWh",{"$f":"+'Operational Data'!H29","v":0.66881276913520793}]
["Electricity Exported",null,null,{"$f":"+'Operational Data'!G28","v":186332.02380000002},null,"MWh",{"$f":"+'Operational Data'!H28","v":650.22376625280049}]
["Gas Oil",null,null,{"$f":"'Operational Data'!G49*0.85/1000","v":145.05929999999998},null,"tonnes",{"$f":"(D13*42800*1000*(1/3600))/'Operational Data'!G24","v":6.0181385788963091}]
["Steam/hot water exported",null,null,{"$f":"+'Operational Data'!G31","v":0},null,"GWh",{"$f":"+'Operational Data'!H31","v":"-"}]
[]
[]
[]
["Operator’s comments :"]
["Density value of 850 kg.m-3 used to convert gas oil litres to tonnes.\nNet Calorific Value (NCV) of 42,800 kJ.kg-1 used for gas oil"]
[]
[]
[]
[]
[]
[]
[]
[]
[]
["Signed: ","Richard Watkins",null,null,null,null,"Date:","2026-01-26"]

{"sheet":"Permit Compliance","index":6,"n_rows":30,"n_cols":11,"rows_kept":30,"cut":false,"hidden":false,"merged":[[18,0,18,8],[28,0,28,8],[35,0,35,8],[24,1,24,2],[25,1,25,2],[26,0,26,8],[19,7,19,8],[19,1,19,2],[19,3,19,5],[21,3,21,5],[22,3,22,5],[23,3,23,5],[24,3,24,5],[25,3,25,5],[21,1,21,2],[8,10,20,10],[33,1,33,3],[33,4,33,6],[33,7,33,8],[29,1,29,3],[29,4,29,6],[29,7,29,8],[30,1,30,3],[30,4,30,6],[30,7,30,8],[22,1,22,2],[23,1,23,2],[14,0,14,1],[14,2,14,4],[34,1,34,3],[34,4,34,6],[34,7,34,8],[31,1,31,3],[31,4,31,6],[31,7,31,8],[32,1,32,3],[32,4,32,6],[32,7,32,8],[14,5,14,8],[15,0,15,1],[16,2,16,4],[16,5,16,8],[15,2,15,4],[15,5,15,8],[16,0,16,1],[7,0,7,1],[7,2,7,8],[8,0,8,1],[8,2,8,4],[8,5,8,8],[9,0,9,1],[9,2,9,4],[9,5,9,8],[10,0,10,1],[10,2,10,4],[10,5,10,8],[11,0,11,1],[11,2,11,4],[11,5,11,8],[12,0,12,1],[12,2,12,4],[12,5,12,8],[13,0,13,1],[13,2,13,4],[13,5,13,8]]}
[{"$f":"+'Cover Page'!$B$29","v":"Annual Performance Report 2025"},null,null,null,{"$f":"+'Cover Page'!$B$33","v":"Suffolk EfW"}]
[]
["Summary of Permit Compliance"]
[]
["Compliance with permit limits for continuously monitored pollutants"]
[]
["The plant met its emission limits as shown in the table below:"]
["Substance",null,"Percentage time compliant during operationNote 1",null,null,null,null,null,null,null,"Notes:"]
[null,null,"Half-hourly limit",null,null,"Daily limit",null,null,null,null,"Note 1: Please report to 2 decimal places, i.e. xx.xx%\n\nNote 2: Please enter into this table any permit non-compliances that the EA has given a CCS score for. Please also enter any other non-compliances which you have notified to the EA (e.g. ELV exceedances) but which have not yet been assessed by the EA. There is no need to enter any notifications which were subsequently assessed by the EA not to be permit breaches.  \n\nNote 3: Please enter information here (rather than just referencing the notifications that were sent to the EA) including where relevant the incineration line reference, pollutant and value of the measured result for any ELV exceedances.   \n\n"]
["Particulates",null,1,null,null,1]
["Oxides of nitrogen",null,1,null,null,1]
["Sulphur dioxide",null,1,null,null,1]
["Carbon monoxide",null,"100.00% (95% of 10-min averages)",null,null,1]
["Total organic carbon",null,0.99997000000000003,null,null,1]
["Hydrogen chloride",null,1,null,null,1]
["Ammonia",null,"N/A",null,null,1]
[null,null,1,null,null,1]
[]
["Summary of non-compliances under the permit Note 2"]
["Date","Summary of non-compliance Note 3",null,"Reason ",null,null,"Measures taken to prevent reoccurrence","CCS score if applicable*"]
[null,null,null,null,null,null,null,"Impact","Root cause"]
["2025-01-01","S1 water discharge to sewer above daily consent limit. Discharge volume of 24.9m3/day against limit of 24m3/day",null,"Siltation of settlement tank and loss of tank capacity",null,null,"Tank cleaned at the end of January 2025"]
["2025-04-16","Line 2 half-hourly TOC ELV breach",null,"ID fan tripped and could not be restarted quickly enough to prevent the breach.",null,null,"Fouled impulse lines cleaned during May outage and PPM regime put in place to clean them annually."]
[]
[]
[]
["*If the Environment Agency (EA) has given a Compliance Classification Scheme (CCS) score due to a permit non-compliance it should be entered here (CCS4 = No impact; CCS3 = Minor impact; CCS2 = Significant impact; CCS1 = Major impact). If the EA has not yet assessed a non-compliance which you have notified to them, these columns should be left blank. Enter N/A if no score was given for the root cause.  "]
[]
["Summary of any complaints received and actions to taken to resolve them."]
["Date","Summary of complaint [including Line/Reference]",null,null,"Reason (including whether substantiated by the operator or the EA)",null,null,"Measures taken to prevent reoccurrence"]

{"sheet":"Improvements","index":7,"n_rows":39,"n_cols":5,"rows_kept":39,"cut":false,"hidden":false,"merged":[[37,0,37,8],[38,0,47,8],[4,0,4,8],[5,0,13,8],[15,0,15,8],[16,0,24,8],[26,0,26,8],[27,0,35,8]]}
[{"$f":"+'Cover Page'!$B$29","v":"Annual Performance Report 2025"},null,null,null,{"$f":"+'Cover Page'!$B$33","v":"Suffolk EfW"}]
[]
["Summary of Plant Improvements"]
[]
["Summary of any efficiency improvements that have been completed within the year."]
["As noted in the operation summary tab, a significant proportion of the refractory covered waterwalls were replaced with Inconel overlayed waterwall which should help improve the boiler efficiency.  Online explosive cleaning was also trialled for the first time to maintain boiler efficiency."]
[]
[]
[]
[]
[]
[]
[]
[]
[]
["Summary of any permit improvement conditions that have been completed within the year and the resulting environmental benefits."]
["March 25 - amended Dust Management Plan provided, in response to EA comments, for permit improvement condition IC4."]
[]
[]
[]
[]
[]
[]
[]
[]
[]
["Summary of any changes to the plant or operating techniques which required a variation to the permit and a summary of the resulting environmental impact."]
["Not applicable"]
[]
[]
[]
[]
[]
[]
[]
[]
[]
["Summary of any other improvements made to the plant or planned to be made and a summary of the resulting environmental benefits."]
["Not applicable"]

{"sheet":"Public Liasion","index":8,"n_rows":31,"n_cols":5,"rows_kept":31,"cut":false,"hidden":false,"merged":[[25,0,26,1],[25,2,26,8],[27,0,28,1],[27,2,28,8],[30,0,30,8],[19,0,20,1],[19,2,20,8],[21,0,22,1],[21,2,22,8],[23,0,24,1],[23,2,24,8],[12,2,13,8],[18,0,18,1],[18,2,18,8],[5,0,5,1],[5,2,5,8],[6,0,7,1],[6,2,7,8],[8,0,9,1],[8,2,9,8],[10,0,11,1],[10,2,11,8],[14,0,15,1],[14,2,15,8],[17,0,17,8],[12,0,13,1]]}
[{"$f":"+'Cover Page'!$B$29","v":"Annual Performance Report 2025"},null,null,null,{"$f":"+'Cover Page'!$B$33","v":"Suffolk EfW"}]
[]
["Details of Public & Stakeholder Liaison"]
[]
["Summary of events held during the reporting year."]
["Date",null,"Description"]
[" May 2025",null,"Suffolk Show"]
[]
["2025-07-01",null,"Site’s 10th anniversary celebrations and official opening of refurbished visitor centre"]
[]
["2025-09-01",null,"Heritage Open Days – we hosted two tours on Saturday 13 September 2025, which were attended by 32 visitors."]
[]
["Throughout the year",null,"Tours: - 42 adult tours/open day tours and 35 school/community group tours totalling 1,348 visitors."]
[]
["Throughout the year",null,"Outreach projects: - 18 events involving 1,266 people.\n(10 children's outreach events, 4 careers events, 2 environmental events for mixed groups, 2 outreach talks for adults)"]
[]
[]
["List of events planned for next year"]
["Date",null,"Description"]
["2026-05-01",null,"Suffolk Show"]
[]
["2026-09-01",null,"Heritage Open Days"]
[]
["Throughout the year",null,"Adult tours and school/community group tours"]
[]
["Throughout the year",null,"Outreach events"]
[]
["Throughout the year",null,"Careers events"]
[]
[]
["If you wish to be involved in the public liaison programme, please contact jennifer.steytler@suez.com"]

{"sheet":"CO2 N2O","index":9,"n_rows":25,"n_cols":6,"rows_kept":25,"cut":false,"hidden":false,"merged":[[6,5,9,5],[22,2,22,3],[25,1,25,3],[16,2,16,3],[4,0,4,3],[9,0,9,3],[17,0,17,3],[13,0,13,3],[8,2,8,3],[11,2,11,3],[19,2,19,3]]}
[{"$f":"+'Cover Page'!$B$29","v":"Annual Performance Report 2025"},null,{"$f":"+'Cover Page'!$B$33","v":"Suffolk EfW"}]
[]
["Carbon dioxide emissions and biogenic content of waste inputs",null,null,null,null,"Notes:"]
[]
["Carbon dioxide emissions (all types of plant)"]
[null,"Annual mass of carbon dioxide released","tonnes ",278686.17102156312]
[null,"Annual mass of carbon dioxide released per tonne of waste burned","t CO2 / t waste ",{"$f":"D6/'Operational Data'!G24","v":0.97250256841901384},null,"Note 1: All permits require operators to continuously monitor CO2 to EN14181 and flow to BS EN 16911-2 (unless otherwise agreed in writing). Operators must therefore use the results from these instruments to calculate their annual CO2 emissions. Where an operator does not have a flow meter calibrated to BS EN 16911-2, the averaged flow measurement from that year's periodic monitoring can be used instead. If the plant does not have calibrated CO2 CEMS, a suitably justified emissions factor can be used. \n\n"]
[null,"Annual mass of carbon dioxide released per MWh of energy exported","t CO2 / MWh export ",{"$f":"D6/'Operational Data'!G28","v":1.4956429138594645}]
[null,"Description of how annual carbon dioxide mass emission has been calculated. \nSee Note 1","Measured variables (CO2, H2O and flow) which are subject to EN14181"]
["Nitrous oxide emissions (only plants which use ammonia or urea to abate NOx emissions)"]
[null,"Annual mass emissions of nitrous oxide","tonnes N2O",{"$f":"(6771+5183)/2000","v":5.9770000000000003}]
[null,"Description of how annual nitrous oxide mass emission has been calculated\nSee Note 2","Measured variables (N2O, H2O and flow) which are subject to EN14181",null,null,"Note 2: All permits require operators to continuously monitor N2O to EN14181 and flow to BS EN 16911-2, unless otherwise agreed in writing. Operators must therefore use the results from these instruments to calculate their annual N2O emissions. Where an operator does not have a flow meter calibrated to BS EN 16911-2, the averaged flow measurement from periodic monitoring can be used instead. If the plant does not have calibrated N2O CEMS, data from periodic monitoring or a suitably justified emissions factor can be used instead."]
[null,"Total annual carbon dioxide + nitrous oxide emissions. \nSee Note 3. ","tonnes CO2e",{"$f":"(D11*265)+D6","v":280270.07602156315},null,"Note 3: Total annual carbon dioxide and nitrous oxide emissions reported as carbon dioxide equivalent where 1 tonne nitrous oxide is equivalent to 265 tonnes carbon dioxide."]
["Biogenic CO2 emissions (See Note 4)",null,null,null,null,"Note 4: Only plants combusting residual municipal waste, refuse derived fuel or solid recovered fuel need complete this section. "]
[null,"Percentage of total carbon dioxide emissions arising from biogenic waste","%",0.53300000000000003]
[null,"No. of measurements undertaken","Number",7]
[null,"Description of how percentage biogenic carbon dioxide emissions have been measured or calculated.\nSee Note 5","C14 Sampling installed mid year and samples analysed monthly",null,null,"Note 5: The results from C14 sampling should be used if this is carried out at the plant (either via an installed sampler or from spot samples).  \nOtherwise, as an approximation (and in lieu of any more accurate metrics which may be developed in future), the measured or estimated biogenic fraction by net calorific value (see Note 6) can be assumed to be the same as the biogenic CO2 fraction of the total CO2 emissions from the plant. "]
["Biogenic fraction of waste feedstock (See Note 4)"]
[null,"Yearly average biogenic percentage of the waste by net calorific value (NCV)","%",{"$f":"(0.39*D15/100)/(0.47-0.8*D15/100)*100","v":0.44632581548344991}]
[null,"Description of how biogenic percentage (by NCV) has been calculated or estimated. \nSee Note 6","Method stated in note 6",null,null,"Note 6: If C14 sampling is carried out at the plant, the methodology set out in the embedded document entitled \"Renewable Energy Association Energy Content of Fuels - Description of Method\" embedded below can be used to calculate the biogenic percentage by net calorific value. Otherwise, data from waste sampling or BIOMA software can be used; or if none of these are available, an estimated figure with justification or a figure assumed on the basis of up-to-date industry data can be used. "]
[null,"Yearly average biogenic percentage of the waste by mass","%",0.53469999999999995]
[null,"If waste sampling undertaken, no. of samples used to ascertain average biogenic percentages above","Number",1]
[null,"Description of how biogenic percentage (by mass) has been calculated or estimated. \nSee Note 7","Calculated from Annual Waste Sampling",null,null,"Note 7: Where available, data from waste sampling should be used; otherwise, an estimated figure with justification can be used, or a figure assumed on the basis of up-to-date industry data. "]
[]
[null,"Comments:"]

{"sheet":"Residues","index":10,"n_rows":62,"n_cols":11,"rows_kept":62,"cut":false,"hidden":false,"merged":[[61,0,66,6],[57,3,57,4],[60,0,60,6],[52,0,53,1],[54,0,54,1],[55,0,55,1],[56,0,56,1],[57,0,57,1],[54,3,54,4],[55,3,55,4],[54,5,54,6],[55,5,55,6],[56,5,56,6],[57,5,57,6],[58,0,58,6],[45,0,46,1],[45,2,46,6],[47,0,48,1],[47,2,48,6],[56,3,56,4],[52,2,53,2],[53,3,53,4],[53,5,53,6],[52,3,52,6],[51,0,51,6],[4,0,25,8],[4,10,13,13],[41,0,42,1],[41,2,42,6],[43,0,44,1],[43,2,44,6],[37,0,37,6],[38,0,38,1],[38,2,38,6],[30,0,31,6],[32,0,33,6],[34,0,35,6],[39,0,40,1],[39,2,40,6]]}
[{"$f":"+'Cover Page'!$B$29","v":"Annual Performance Report 2025"},null,null,null,{"$f":"+'Cover Page'!$B$33","v":"Suffolk EfW"}]
[]
["Summary of Residue Handling for the reporting year"]
[]
["IBA is the main residue by volume/weight associated with the burning of waste for energy generation. The IBA is the heavy ash produced by the combustion process that is discharged from the bottom of the furnace grate and the fine ash that passes through the moving grate to the bottom ash tank. The IBA at Suffolk represents approximately 22%1 of the annual mass of waste that is thermally treated by the incineration process. The plant therefore can produce up to 65,000 tonnes of IBA per annum.\nAPCR is the boiler ash that is produced in the furnace that is light enough to be carried through the boiler entrained in the flue gases. As it passes through the flue gas treatment (FGT) process, lime and carbon is added as part of the treatment process to remove acidic gases, heavy metals and other hazardous products of the combustion process including dioxins and furans.\nThis boiler ash combined with these reagents in FGT is referred to as Air Pollution Control Residue. APCR at Suffolk EfW represents up to 2.5% of the annual mass of waste that is thermally treated by the incineration process. The plant therefore can produce up to 7,400 tonnes of APCR per annum.\nIBA is sampled every week for laboratory analysis and this is carried out in accordance with Environment Agency waste classification guidance. The weekly samples include a partial hazard assessment, a further sample is carried out annually for full hazard assessment. This analysis and assessment is carried out to confirm the ongoing non-hazardous status of the IBA material. Additional sampling and analysis is carried out quarterly in line with permit requirements. The only emission limit value applied to the IBA is a 3% TOC limit. APCR analysis is carried out quarterly in line with permit requirements. Additional analysis of APCR was carried out during 2025 to udnertake a full hazard assessment to identify the hazard properties for this residue.\nThe IBA is treated by the onsite IBA recycling plant, operated by Blue Phoenix, to extract ferrous and non-ferrous metal for recycling, and to produce an IBA aggregate material to replace the use of virgin aggregate in construction projects.\nAPCR removal from site is for treatment prior to disposal. The material is currently transferred to Augean where the material is stabilised with waste sludges and cleaned to reduce lime alkalinity and produce a solid cake product. The cake product is subsequently disposed of to Augean’s Kings Cliff hazardous landfill near Peterborough.",null,null,null,null,null,null,null,null,null,"Include in here a summary of residue handling regimes and destinations "]
[]
[]
[]
[]
[]
[]
[]
[]
[]
[]
[]
[]
[]
[]
[]
[]
[]
[]
[]
[]
[]
[]
["Residue Quality Monitoring Requirements"]
[]
["Summary of monitoring undertaken and compliance"]
["The samples for the quarterly IBA analysis were undertaken on 05/02/2025, 20/04/2025, 13/08/2025 and 22/10/2025"]
[]
["There were no issues identified by the analysis and all results for TOC were below the permit limit. LOI analysis is not required as TOC analysis is provided"]
[]
[]
[]
[]
["Commentary on any specific events"]
["Date & Event",null,"Description"]
[]
[]
[]
[]
[]
[]
[]
[]
[]
[]
[]
[]
["Residue Quality Monitoring Results"]
["Parameter (unit) ",null,"Limit*","Normal Operation "]
[null,null,null,"Bottom ash  ",null,"APC Residues"]
["Loss on Ignition (average %)",null,"<5%","N/A"]
["Total Organic Carbon (average %)",null,"<3%",1.12E-2]
["No. of Assessments Undertaken",null,"---",4,null,4]
["No. of Hazardous Results",null,"---",0]
["* The permit will specify a limit of either 5% loss on ignition or 3% total organic carbon. If both are measured anyway, please enter the results here, even where the limit does not apply. "]
[]
["Comments :"]
["05/02/2025 IBA Sample - TOC = 1.22\n30/04/2025 IBA Sample - TOC = 0.99\n13/08/2025 IBA Sample - TOC = 0.96\n22/10/2025 IBA Sample - TOC = 1.31\nAverage = 1.12%"]

{"sheet":"Water","index":11,"n_rows":24,"n_cols":9,"rows_kept":24,"cut":false,"hidden":false,"merged":[[29,0,29,2],[29,3,29,4],[26,0,26,2],[26,3,26,4],[27,0,27,2],[27,3,27,4],[28,0,28,2],[28,3,28,4],[23,0,23,2],[23,3,23,4],[24,0,24,2],[24,3,24,4],[25,0,25,2],[25,3,25,4],[21,0,21,8],[22,0,22,2],[22,3,22,4],[14,0,15,1],[14,2,15,8],[16,0,17,1],[16,2,17,8],[18,0,19,1],[18,2,19,8],[5,0,6,8],[7,0,8,8],[9,0,10,8],[12,0,12,8],[13,0,13,1],[13,2,13,8]]}
[{"$f":"+'Cover Page'!$B$29","v":"Annual Performance Report 2025"},null,null,null,{"$f":"+'Cover Page'!$B$33","v":"Suffolk EfW"}]
[]
["Emissions to Water"]
[]
["Summary of monitoring undertaken and compliance"]
["There are no discharges to water regulated by the permit. The discharge point S1 has a volume limit of 24m3 per day as detailed in table S3.4. Compliance with the discharge volume limit is reported to the Environment Agency on a quarterly basis in line with permit requirements."]
[]
[]
[]
[]
[]
[]
["Commentary on any specific events"]
["Date & Event",null,"Description"]
["Sewer discharge volume limit breach 01/01/2025",null,"01/01/2025 - 24.9 m3"]
[]
[]
[]
[]
[]
[]
["Emissions to Water / Sewer"]
["Parameter",null,null,"Monitoring Frequency",null,"Limit","Target","Max.","Average"]
["Water Volume (m3/day) to Sewer (S1)",null,null,"Continuous",null,"24m3/day",0,24.9,4.05]

{"sheet":"Air (periodic)","index":12,"n_rows":40,"n_cols":11,"rows_kept":40,"cut":false,"hidden":false,"merged":[[13,10,14,12],[15,10,16,10],[15,11,16,11],[15,12,16,12],[18,3,18,4],[13,3,13,4],[14,3,14,4],[15,3,15,4],[16,3,16,4],[17,3,17,4],[21,3,21,4],[22,3,22,4],[23,3,23,4],[24,3,24,4],[31,3,31,4],[25,3,25,4],[26,3,26,4],[28,3,28,4],[38,0,38,9],[19,0,19,1],[20,0,20,1],[21,0,21,1],[34,3,34,4],[35,3,35,4],[33,0,33,1],[34,0,34,1],[35,0,35,1],[36,0,36,1],[24,0,24,1],[32,3,32,4],[27,3,27,4],[33,3,33,4],[19,3,19,4],[20,3,20,4],[39,0,40,9],[25,0,25,1],[26,0,26,1],[22,0,22,1],[23,0,23,1],[37,0,37,1],[27,0,27,1],[28,0,28,1],[29,0,29,1],[30,0,30,1],[31,0,31,1],[32,0,32,1],[37,3,37,4],[29,3,29,4],[30,3,30,4],[36,3,36,4],[16,0,16,1],[17,0,17,1],[18,0,18,1],[13,0,13,1],[14,0,14,1],[15,0,15,1],[12,0,12,1],[11,3,11,4],[12,3,12,4],[9,0,10,1],[9,5,9,9],[9,3,10,4],[9,2,10,2],[5,10,8,13],[9,10,11,13],[8,0,8,9],[5,0,6,9],[11,0,11,1]]}
[{"$f":"+'Cover Page'!$B$29","v":"Annual Performance Report 2025"},null,null,null,{"$f":"+'Cover Page'!$B$33","v":"Suffolk EfW"}]
[]
["Emissions to Air (periodically monitored)"]
[]
["Summary of monitoring undertaken, standards used and compliance",null,null,null,null,null,null,null,null,null,"Notes:"]
["Emissions monitoring campaigns (H1 & H2) are at 6 monthly intervals. The H1 monitoring was completed between the 3rd March and the 14th April. The H2 monitoring was completed between the 29th September and the 2nd October. ",null,null,null,null,null,null,null,null,null,"Template may require adjustment for any bespoke monitoring requirements of permit - please also check that all default ELV values, reference periods and the stated oxygen reference value match those for your plant, and edit if necessary!"]
[]
[]
["Results of emissions to air that are periodically monitored - oxygen reference 11% "]
["Substance",null,"Ref. Period","Emission Limit Value",null,"Average",null,null,null,null,"User to add additional tables as necessary, depending on whether quarterly or bi-annual reporting is required for the compliance year"]
[null,null,null,null,null,"A1","A2","A3","A4","A5"]
["Hydrogen fluoride",null,"1 hr","1 mg/m3",null,{"$f":"AVERAGE(0.042, 0.037)","v":3.95E-2},{"$f":"AVERAGE(0.037, 0.04)","v":3.85E-2}]
["Cd and Tl and their compounds",null,"0.5-8hrs","0.02 mg/m3",null,{"$f":"AVERAGE(0.0007, 0.001)","v":8.5000000000000006E-4},{"$f":"AVERAGE(0.00094, 0.001)","v":9.6999999999999994E-4}]
["Hg and its compounds",null,"0.5-8hrs","0.02 mg/m3",null,{"$f":"AVERAGE(0.0012, 0.0003)","v":7.4999999999999991E-4},{"$f":"AVERAGE(0.0004, 0.00071)","v":5.5500000000000005E-4}]
["Sb, As, Pb, Cr, Co, Cu, Mn, Ni, V and their compounds",null,"0.5-8hrs","0.3 mg/m3",null,{"$f":"AVERAGE(0.0093, 0.022)","v":1.5649999999999997E-2},{"$f":"AVERAGE(0.051, 0.0459)","v":4.845E-2}]
["Dioxins & Furans (I-TEQ)",null,"6-8hrs","0.06 ng/m3",null,{"$f":"AVERAGE(0.0028, 0.000073)","v":1.4365000000000001E-3},{"$f":"AVERAGE(0.000054, 0.00031)","v":1.8200000000000001E-4}]
["PCBs (WHO-TEQ Humans / Mammals)",null,"6-8hrs","None set ng/m3",null,{"$f":"AVERAGE(0.000019, 0.00032)","v":1.695E-4},{"$f":"AVERAGE(0.000063, 0.00012)","v":9.1500000000000001E-5}]
["PCBs (WHO-TEQ Fish)",null,"6-8hrs","None set ng/m3",null,{"$f":"AVERAGE(0.000014, 0.000002)","v":7.9999999999999996E-6},{"$f":"AVERAGE(0.000004, 0.000007)","v":5.4999999999999999E-6}]
["PCBs (WHO-TEQ Birds)",null,"6-8hrs","None set ng/m3",null,{"$f":"AVERAGE(0.000265, 0.00058)","v":4.2250000000000002E-4},{"$f":"AVERAGE(0.00058, 0.000273)","v":4.2650000000000001E-4}]
["Dioxins & Furans (WHO-TEQ Humans / Mammals)",null,"6-8hrs","None set ng/m3",null,{"$f":"AVERAGE(0.0028, 0.000067)","v":1.4334999999999999E-3},{"$f":"AVERAGE(0.00033, 0.000045)","v":1.875E-4}]
["Dioxins & Furans (WHO-TEQ Fish)",null,"6-8hrs","None set ng/m3",null,{"$f":"AVERAGE(0.000016, 0.0026)","v":1.3079999999999999E-3},{"$f":"AVERAGE(0.000005, 0.00029)","v":1.4750000000000001E-4}]
["Dioxins & Furans (WHO-TEQ Birds)",null,"6-8hrs","None set ng/m3",null,{"$f":"AVERAGE(0.0039, 0.000016)","v":1.9580000000000001E-3},{"$f":"AVERAGE(0.00045, 0.000005)","v":2.275E-4}]
["Anthanthrene",null,"6-8hrs","None set µg/m3",null,1.4E-3,1.6999999999999999E-3]
["Benzo(a)anthracene",null,"6-8hrs","None set µg/m3",null,7.0000000000000001E-3,5.1999999999999998E-3]
["Benzo(a)pyrene",null,"6-8hrs","None set µg/m3",null,2.8E-3,2.7000000000000001E-3]
["Benzo(b)fluoranthene",null,"6-8hrs","None set µg/m3",null,2.3E-3,1.9E-3]
["Benzo(b)naptho(2,1-d) thiophene",null,"6-8hrs","None set µg/m3",null,1.4E-3,1.6999999999999999E-3]
["Benzo(c)phenanthrene",null,"6-8hrs","None set µg/m3",null,1.4E-3,1.6999999999999999E-3]
["Benzo(ghi)perylene",null,"6-8hrs","None set µg/m3",null,3.8E-3,4.7000000000000002E-3]
["Benzo(k)fluoranthene",null,"6-8hrs","None set µg/m3",null,1.4E-3,1.6999999999999999E-3]
["Cholanthrene",null,"6-8hrs","None set µg/m3",null,1.4E-3,1.6999999999999999E-3]
["Chrysene",null,"6-8hrs","None set µg/m3",null,6.6E-3,4.4999999999999997E-3]
["Cyclopenta(cd)pyrene",null,"6-8hrs","None set µg/m3",null,1.4E-3,1.6999999999999999E-3]
["Dibenzo(ai)pyrene",null,"6-8hrs","None set µg/m3",null,1.4E-3,1.6999999999999999E-3]
["Dibenzo(ah)anthracene",null,"6-8hrs","None set µg/m3",null,1.4E-3,1.6999999999999999E-3]
["Fluoranthene",null,"6-8hrs","None set µg/m3",null,2.3E-2,2.1999999999999999E-2]
["Indeno(123-cd) pyrene",null,"6-8hrs","None set µg/m3",null,1.4E-3,1.6999999999999999E-3]
["Naphthalene",null,"6-8hrs","None set µg/m3",null,1.4,1.4]
["Comments :"]
["Results are exressed as the average of the two values recorded in the 6-monthly emissions monitoring campaigns. Results highlighted in bold were recorded as < lab limit of detection so have been expressed as the LOD value. PAH's are sampled only annually so the results reported in bold were reported at the Lab Limit of Detection (< removed)."]

{"sheet":"Air (CEMS)","index":13,"n_rows":30,"n_cols":14,"rows_kept":30,"cut":false,"hidden":false,"merged":[[30,0,31,12],[13,0,14,0],[5,0,6,12],[7,0,8,12],[10,0,10,12],[11,0,12,0],[11,2,12,2],[11,1,12,1],[11,3,11,4],[11,5,11,6],[11,7,11,8],[11,9,11,10],[11,11,11,12],[15,0,16,0],[17,0,18,0],[19,0,20,0],[14,13,15,13],[14,14,15,14],[14,15,15,15],[12,13,13,15],[28,0,28,12],[21,0,22,0],[23,0,24,0],[25,0,26,0]]}
[{"$f":"+'Cover Page'!$B$29","v":"Annual Performance Report 2025"},null,null,null,null,null,null,null,{"$f":"+'Cover Page'!$B$33","v":"Suffolk EfW"}]
[]
["Emissions to Air (continuously monitored)"]
[null,null,null,null,null,null,null,null,null,null,null,null,null,"Notes:"]
["Summary of monitoring undertaken, standards used and compliance",null,null,null,null,null,null,null,null,null,null,null,null,"Template may require adjustment for any bespoke monitoring requirements of permit"]
["The CEMS set up comprises a multigas analyser, FID analyser and oxygen probe for extractive sampling where flue gases are drawn continuously via a heated line to the analysers in the CEMS room for each incineration line. In situ sampling i.e. where the probes are installed directly into the flue gas flow in the stack is for the dust probes only. The set up for the duty analysers is mirrored by the standby analysers. The standby analysers can be switched between incineration Lines 1 and 2 as required. Continuous monitoring is provided by the CEMS as required by the permit. The CEMS are installed in accordance with EN14181 and relevant Environment Agency guidance.",null,null,null,null,null,null,null,null,null,null,null,null,"Please check that all default ELV values match those for your plant and edit if necessary!"]
[null,null,null,null,null,null,null,null,null,null,null,null,null,"Report to 1 decimal place"]
[]
[]
[]
["Results of emissions to air that are continuously monitored (maximum and average values for each line) - oxygen reference 11%"]
["Substance","Reference Period","Emission Limit Value","A1",null,"A2",null,"A3",null,"A4",null,"A5"]
[null,null,null,"Max.","Avg.","Max.","Avg.","Max.","Avg.","Max.","Avg.","Max.","Avg."]
["Oxides of nitrogen","Daily mean","180 mg/m3 ",{"$f":"NOx!O19","v":171.3},{"$f":"NOx!N19","v":162.38818670172449},{"$f":"NOx!O34","v":171.9},{"$f":"NOx!N34","v":164.68889323479615}]
[null,"½ hourly mean","400 mg/m3 ",{"$f":"NOx!M19","v":209.5},{"$f":"NOx!L19","v":162.451304560659},{"$f":"NOx!M34","v":233.3},{"$f":"NOx!L34","v":164.64927149900507}]
["Particulates","Daily mean","5 mg/m3",{"$f":"Particulates!O19","v":2.4},{"$f":"Particulates!N19","v":1.2951154545447092},{"$f":"Particulates!O34","v":1.4},{"$f":"Particulates!N34","v":1.2368925151465906}]
[null,"½ hourly mean","30 mg/m3 ",{"$f":"Particulates!M19","v":7.1},{"$f":"Particulates!L19","v":1.3021909967460992},{"$f":"Particulates!M34","v":1.9},{"$f":"Particulates!L34","v":1.2369545991199649}]
["Total Organic Carbon ","Daily mean","10 mg/m3 ",{"$f":"TOC!O19","v":0.4},{"$f":"TOC!N19","v":5.7811043191260576E-2},{"$f":"TOC!O34","v":1},{"$f":"TOC!N34","v":0.19162016566462969}]
[null,"½ hourly mean","20 mg/m3 ",{"$f":"TOC!M19","v":9.6999999999999993},{"$f":"TOC!L19","v":6.5400716723920865E-2},{"$f":"TOC!M34","v":40.799999999999997},{"$f":"TOC!L34","v":0.19281512214184424}]
["Hydrogen chloride ","Daily mean","8 mg/m3 ",{"$f":"HCl!O19","v":5.9},{"$f":"HCl!N19","v":4.1651961446978101},{"$f":"HCl!O34","v":5.8997960090637207},{"$f":"HCl!N34","v":4.3438996798015799}]
[null,"½ hourly mean","60 mg/m3 ",{"$f":"HCl!M19","v":23.7},{"$f":"HCl!L19","v":4.1134693219702019},{"$f":"HCl!M34","v":19.811101913452148},{"$f":"HCl!L34","v":4.3411129414503247}]
["Sulphur dioxide","Daily mean","40 mg/m3 ",{"$f":"'SO2'!O19","v":35.9},{"$f":"'SO2'!N19","v":21.486531090416591},{"$f":"'SO2'!O34","v":36.103473663330078},{"$f":"'SO2'!N34","v":18.800129124307201}]
[null,"½ hourly mean","200 mg/m3 ",{"$f":"'SO2'!M19","v":111.2},{"$f":"'SO2'!L19","v":21.441442321769433},{"$f":"'SO2'!M34","v":117.23346710205078},{"$f":"'SO2'!L34","v":18.928246123795169}]
["Carbon monoxide ","Daily mean","50 mg/m3 ",{"$f":"'CO 95% 10 min'!Q19","v":8.994415283203125},{"$f":"'CO 95% 10 min'!P19","v":4.3827812666632644},{"$f":"'CO 95% 10 min'!Q34","v":9.2880735397338867},{"$f":"'CO 95% 10 min'!P34","v":5.4128482199299155}]
[null,"95%ile 10-min avg","150 mg/m3",{"$f":"MAX('CO 95% 10 min'!M7:M18)","v":140.69816589355469},{"$f":"'CO 95% 10 min'!M19","v":46.620837926864624},{"$f":"MAX('CO 95% 10 min'!M22:M33)","v":81.154487609863281},{"$f":"'CO 95% 10 min'!M34","v":37.142372608184814}]
["Nitous Oxide","Daily mean","None",{"$f":"'N20'!O19","v":15.1},{"$f":"'N20'!N19","v":4.0768738993986959},{"$f":"'N20'!O34","v":7.2898550033569336},{"$f":"'N20'!N34","v":2.9881961106215869}]
[null,"½ hourly mean","None",{"$f":"'N20'!M19","v":56},{"$f":"'N20'!L19","v":4.1389391305502761},{"$f":"'N20'!M34","v":51.776885986328125},{"$f":"'N20'!L34","v":3.0120197153322881}]
[" Ammonia","Daily mean","15 mg/m3 ",{"$f":"'NH3'!O19","v":1.3},{"$f":"'NH3'!N19","v":0.5492074711957643},{"$f":"'NH3'!O34","v":2.1499340534210205},{"$f":"'NH3'!N34","v":0.33965062069678292}]
[]
["Comments :"]

{"sheet":"HCl","index":14,"n_rows":79,"n_cols":17,"rows_kept":79,"cut":false,"hidden":false,"merged":[[12,16,15,18],[51,9,63,9],[66,9,78,9],[4,9,4,14],[4,1,4,3],[4,4,4,6],[48,0,51,6],[47,0,47,6],[6,9,18,9],[21,9,33,9],[36,9,48,9],[3,16,7,18],[9,16,11,18],[18,4,18,6]]}
[{"$f":"+'Cover Page'!$B$29","v":"Annual Performance Report 2025"},null,null,null,{"$f":"+'Cover Page'!$B$33","v":"Suffolk EfW"}]
[]
["Monitoring of Hydrogen Chloride emissions",null,null,"Whole Installation",null,null,"See  Notes in Cell Q3",null,null,{"$f":"+A3","v":"Monitoring of Hydrogen Chloride emissions"},null,null,null,"Per Combustion Line",null,null,"Notes:"]
[null,null,null,null,null,null,null,null,null,null,null,null,null,null,null,null,"User to add logic to complete Whole installation, Table A5:G18. From the data in Per Combustion Line, Table J6:O79, subject to No. of lines installed"]
[{"$f":"+'Cover Page'!C39","v":2025},"1/2 Hourly Reference Periods",null,null,"Daily Reference Periods"]
["mg/Nm3","1/2 hourly HCl ELV","Monthly mean of half-hourly averages","Highest half- hourly average","Daily HCl ELV","Monthly mean of  daily averages","Highest daily average",null,null,{"$f":"+A5","v":2025},"mg/Nm3","Monthly mean of half-hourly averages","Highest half- hourly average","Monthly mean of  daily averages","Highest daily average"]
["Jan",60,{"$f":"AVERAGE(L7,L22)","v":2.2999999999999998},{"$f":"MAX(M7,M22)","v":5.5},8,{"$f":"AVERAGE(N7,N22)","v":2.5996543778801842},{"$f":"MAX(O7,O22)","v":3.6},null,null,"A1","Jan",2.1,5.5,2.7064516129032259,3.2]
["Feb",60,{"$f":"AVERAGE(L8,L23)","v":2.65},{"$f":"MAX(M8,M23)","v":6.8},8,{"$f":"AVERAGE(N8,N23)","v":2.6446428571428569},{"$f":"MAX(O8,O23)","v":4},null,null,null,"Feb",2.9,6.8,2.9071428571428575,4]
["Mar",60,3.9,8.6,8,3.9327956989247315,5.5,null,null,null,"Mar",3.9,7.8,3.9333333333333336,5.0999999999999996,null,"Whole Installation table A5:G18:"]
["Apr",60,4.8499999999999996,11.1,8,4.8582352941176481,5.8,null,null,null,"Apr",4.5999999999999996,8.5,4.5764705882352956,5.4,null,"Mean: for 1/2 hourly and daily periods calculate mean of values across all operational combustion lines for the month"]
["May",60,4.9000000000000004,11.1,8,4.9011904761904752,5.7,null,null,null,"May",4.5999999999999996,7.6,4.6857142857142851,5.6]
["Jun",60,4.5,23.7,8,4.5166379310344826,5.9,null,null,null,"Jun",4.7,23.7,4.6482758620689655,5.9]
["Jul",60,4.9000000000000004,8.6,8,4.9064516129032256,5.3,null,null,null,"Jul",4.8,8.6,4.8129032258064521,5.3,null,"Maximum: for 1/2 hourly and daily periods use the highest value across all operational combustion lines for the month"]
["Aug",60,4.95,11.1,8,4.9258064516129032,5.4,null,null,null,"Aug",4.9000000000000004,11.1,4.8870967741935472,5.3]
["Sep",60,4.8499999999999996,9.9,8,4.8416666666666659,5.5,null,null,null,"Sep",4.8,9.9,4.7633333333333328,5.2]
["Oct",60,4.7322211787973671,11.956171989440918,8,4.7322211787973671,5.7456779479980469,null,null,null,"Oct",4.3672000027342932,7.3003039360046387,4.3672000027342932,5.1075940132141113]
["Nov",60,4.1144340684712519,19.811101913452148,8,4.1144340684712519,5.8513598442077637,null,null,null,"Nov",4.1621316204177452,7.3165478706359863,4.1621316204177452,5.4522910118103027]
["Dec",60,4.0808383332545404,10.117546081542969,8,4.0808383332545404,5.8997960090637207,null,null,null,"Dec",3.5323002404903852,7.233881950378418,3.5323002404903852,4.829960823059082]
[null,null,null,null,null,null,null,null,null,null,"Annual",{"$f":"AVERAGE(L7:L18)","v":4.1134693219702019},{"$f":"MAX(M7:M18)","v":23.7},{"$f":"AVERAGE(N7:N18)","v":4.1651961446978101},{"$f":"MAX(O7:O18)","v":5.9}]
[]
[null,null,null,null,null,null,null,null,null,{"$f":"+A5","v":2025},"mg/Nm3","Monthly mean of half-hourly averages","Highest half- hourly average","Monthly mean of  daily averages","Highest daily average"]
[null,null,null,null,null,null,null,null,null,"A2","Jan",2.5,5.5,2.4928571428571429,3.6]
[null,null,null,null,null,null,null,null,null,null,"Feb",2.4,4.4000000000000004,2.3821428571428562,3.2]
[null,null,null,null,null,null,null,null,null,null,"Mar",3.9,8.6,3.9322580645161294,5.5]
[null,null,null,null,null,null,null,null,null,null,"Apr",5.0999999999999996,11.1,5.1400000000000015,5.8]
[null,null,null,null,null,null,null,null,null,null,"May",5.2,11.1,5.1166666666666663,5.7]
[null,null,null,null,null,null,null,null,null,null,"Jun",4.3,6.4,4.3849999999999998,5.0999999999999996]
[null,null,null,null,null,null,null,null,null,null,"Jul",5,8.4,5,5.0999999999999996]
[null,null,null,null,null,null,null,null,null,null,"Aug",5,9,4.9645161290322584,5.4]
[null,null,null,null,null,null,null,null,null,null,"Sep",4.9000000000000004,8.5,4.919999999999999,5.5]
[null,null,null,null,null,null,null,null,null,null,"Oct",5.097242354860442,11.956171989440918,5.097242354860442,5.7456779479980469]
[null,null,null,null,null,null,null,null,null,null,"Nov",4.0667365165247586,19.811101913452148,4.0667365165247586,5.8513598442077637]
[null,null,null,null,null,null,null,null,null,null,"Dec",4.6293764260186947,10.117546081542969,4.6293764260186947,5.8997960090637207]
[null,null,null,null,null,null,null,null,null,null,"Annual",{"$f":"AVERAGE(L22:L33)","v":4.3411129414503247},{"$f":"MAX(M22:M33)","v":19.811101913452148},{"$f":"AVERAGE(N22:N33)","v":4.3438996798015799},{"$f":"MAX(O22:O33)","v":5.8997960090637207}]
[]
[null,null,null,null,null,null,null,null,null,{"$f":"+A5","v":2025},"mg/Nm3","Monthly mean of half-hourly averages","Highest half- hourly average","Monthly mean of  daily averages","Highest daily average"]
[null,null,null,null,null,null,null,null,null,"A3","Jan"]
[null,null,null,null,null,null,null,null,null,null,"Feb"]
[null,null,null,null,null,null,null,null,null,null,"Mar"]
[null,null,null,null,null,null,null,null,null,null,"Apr"]
[null,null,null,null,null,null,null,null,null,null,"May"]
[null,null,null,null,null,null,null,null,null,null,"Jun"]
[null,null,null,null,null,null,null,null,null,null,"Jul"]
[null,null,null,null,null,null,null,null,null,null,"Aug"]
[null,null,null,null,null,null,null,null,null,null,"Sep"]
[null,null,null,null,null,null,null,null,null,null,"Oct"]
[null,null,null,null,null,null,null,null,null,null,"Nov"]
["Comments :",null,null,null,null,null,null,null,null,null,"Dec"]
[null,null,null,null,null,null,null,null,null,null,"Annual",{"$f":"AVERAGE(L37:L48)","v":{"$error":"#DIV/0!"}},{"$f":"MAX(M37:M48)","v":0},{"$f":"AVERAGE(N37:N48)","v":{"$error":"#DIV/0!"}},{"$f":"MAX(O37:O48)","v":0}]
[]
[null,null,null,null,null,null,null,null,null,{"$f":"+A5","v":2025},"mg/Nm3","Monthly mean of half-hourly averages","Highest half- hourly average","Monthly mean of  daily averages","Highest daily average"]
[null,null,null,null,null,null,null,null,null,"A4","Jan"]
[null,null,null,null,null,null,null,null,null,null,"Feb"]
[null,null,null,null,null,null,null,null,null,null,"Mar"]
[null,null,null,null,null,null,null,null,null,null,"Apr"]
[null,null,null,null,null,null,null,null,null,null,"May"]
[null,null,null,null,null,null,null,null,null,null,"Jun"]
[null,null,null,null,null,null,null,null,null,null,"Jul"]
[null,null,null,null,null,null,null,null,null,null,"Aug"]
[null,null,null,null,null,null,null,null,null,null,"Sep"]
[null,null,null,null,null,null,null,null,null,null,"Oct"]
[null,null,null,null,null,null,null,null,null,null,"Nov"]
[null,null,null,null,null,null,null,null,null,null,"Dec"]
[null,null,null,null,null,null,null,null,null,null,"Annual",{"$f":"AVERAGE(L52:L63)","v":{"$error":"#DIV/0!"}},{"$f":"MAX(M52:M63)","v":0},{"$f":"AVERAGE(N52:N63)","v":{"$error":"#DIV/0!"}},{"$f":"MAX(O52:O63)","v":0}]
[]
[null,null,null,null,null,null,null,null,null,{"$f":"+A5","v":2025},"mg/Nm3","Monthly mean of half-hourly averages","Highest half- hourly average","Monthly mean of  daily averages","Highest daily average"]
[null,null,null,null,null,null,null,null,null,"A5","Jan"]
[null,null,null,null,null,null,null,null,null,null,"Feb"]
[null,null,null,null,null,null,null,null,null,null,"Mar"]
[null,null,null,null,null,null,null,null,null,null,"Apr"]
[null,null,null,null,null,null,null,null,null,null,"May"]
[null,null,null,null,null,null,null,null,null,null,"Jun"]
[null,null,null,null,null,null,null,null,null,null,"Jul"]
[null,null,null,null,null,null,null,null,null,null,"Aug"]
[null,null,null,null,null,null,null,null,null,null,"Sep"]
[null,null,null,null,null,null,null,null,null,null,"Oct"]
[null,null,null,null,null,null,null,null,null,null,"Nov"]
[null,null,null,null,null,null,null,null,null,null,"Dec"]
[null,null,null,null,null,null,null,null,null,null,"Annual",{"$f":"AVERAGE(L67:L78)","v":{"$error":"#DIV/0!"}},{"$f":"MAX(M67:M78)","v":0},{"$f":"AVERAGE(N67:N78)","v":{"$error":"#DIV/0!"}},{"$f":"MAX(O67:O78)","v":0}]

{"sheet":"SO2","index":15,"n_rows":79,"n_cols":17,"rows_kept":79,"cut":false,"hidden":false,"merged":[[3,16,7,18],[9,16,11,18],[12,16,15,18],[66,9,78,9],[4,1,4,3],[4,4,4,6],[4,9,4,14],[6,9,18,9],[21,9,33,9],[36,9,48,9],[47,0,47,6],[48,0,51,6],[51,9,63,9],[18,4,18,6]]}
[{"$f":"+'Cover Page'!$B$29","v":"Annual Performance Report 2025"},null,null,null,{"$f":"+'Cover Page'!$B$33","v":"Suffolk EfW"}]
[]
["Monitoring of Sulphur dioxide emissions",null,null,"Whole Installation",null,null,"See  Notes in Cell Q3",null,null,{"$f":"+A3","v":"Monitoring of Sulphur dioxide emissions"},null,null,null,"Per Combustion Line",null,null,"Notes:"]
[null,null,null,null,null,null,null,null,null,null,null,null,null,null,null,null,"User to add logic to complete Whole installation, Table A5:G18. From the data in Per Combustion Line, Table J6:O79, subject to No. of lines installed"]
[{"$f":"+'Cover Page'!C39","v":2025},"1/2 Hourly Reference Periods",null,null,"Daily Reference Periods"]
["mg/Nm3","1/2 hourly SO2 ELV","Monthly mean of half-hourly averages","Highest half- hourly average","Daily SO2 ELV","Monthly mean of  daily averages","Highest daily average",null,null,{"$f":"+A5","v":2025},"mg/Nm3","Monthly mean of half-hourly averages","Highest half- hourly average","Monthly mean of  daily averages","Highest daily average"]
["Jan",200,{"$f":"AVERAGE(L7,L22)","v":31.8},{"$f":"MAX(M7,M22)","v":83.2},40,{"$f":"AVERAGE(N7,N22)","v":31.882488479262676},{"$f":"MAX(O7,O22)","v":34.9},null,null,"A1","Jan",33.200000000000003,83.2,33.193548387096776,34.9]
["Feb",200,{"$f":"AVERAGE(L8,L23)","v":31.85},{"$f":"MAX(M8,M23)","v":72.5},40,{"$f":"AVERAGE(N8,N23)","v":31.860714285714288},{"$f":"MAX(O8,O23)","v":35.9},null,null,null,"Feb",32.200000000000003,72.5,32.182142857142857,35.9]
["Mar",200,22.3,111.2,40,22.44826762246117,33,null,null,null,"Mar",23.5,111.2,23.848148148148148,33,null,"Whole Installation table A5:G18:"]
["Apr",200,20.399999999999999,95.4,40,20.586470588235297,31.8,null,null,null,"Apr",23.2,95.4,23.552941176470593,31.8,null,"Mean: for 1/2 hourly and daily periods calculate mean of values across all operational combustion lines for the month"]
["May",200,14.5,52.9,40,13.881428571428572,34,null,null,null,"May",8.1999999999999993,42.5,8.3428571428571434,22.6]
["Jun",200,11.600000000000001,67.2,40,11.334396551724137,27.7,null,null,null,"Jun",13.8,67.2,13.513793103448274,27.7]
["Jul",200,10.199999999999999,36.5,40,10.180645161290322,16.399999999999999,null,null,null,"Jul",12.6,36.5,12.596774193548386,16.399999999999999,null,"Maximum: for 1/2 hourly and daily periods use the highest value across all operational combustion lines for the month"]
["Aug",200,14.05,51.8,40,14.02741935483871,26.4,null,null,null,"Aug",16,51.8,15.974193548387097,26.4]
["Sep",200,15.399999999999999,72.599999999999994,40,15.399999999999995,29.4,null,null,null,"Sep",16.899999999999999,43.7,16.936666666666664,29.4]
["Oct",200,22.886709757577052,74.568099975585938,40,22.886709757577052,31.934761047363281,null,null,null,"Oct",26.015989420077943,74.568099975585938,26.015989420077943,31.934761047363281]
["Nov",200,20.445118935074127,55.322647094726563,40,20.445118935074127,31.748865127563477,null,null,null,"Nov",23.513242256026221,55.322647094726563,23.513242256026221,31.748865127563477]
["Dec",200,26.786301980736432,117.23346710205078,40,26.786301980736432,36.103473663330078,null,null,null,"Dec",28.168076185129021,77.7010498046875,28.168076185129021,33.068256378173828]
[null,null,null,null,null,null,null,null,null,null,"Annual",{"$f":"AVERAGE(L7:L18)","v":21.441442321769433},{"$f":"MAX(M7:M18)","v":111.2},{"$f":"AVERAGE(N7:N18)","v":21.486531090416591},{"$f":"MAX(O7:O18)","v":35.9}]
[]
[null,null,null,null,null,null,null,null,null,{"$f":"+A5","v":2025},"mg/Nm3","Monthly mean of half-hourly averages","Highest half- hourly average","Monthly mean of  daily averages","Highest daily average"]
[null,null,null,null,null,null,null,null,null,"A2","Jan",30.4,63.2,30.57142857142858,33.1]
[null,null,null,null,null,null,null,null,null,null,"Feb",31.5,66.5,31.539285714285715,35]
[null,null,null,null,null,null,null,null,null,null,"Mar",21.1,69.2,21.048387096774192,30.8]
[null,null,null,null,null,null,null,null,null,null,"Apr",17.600000000000001,49.9,17.62,28.4]
[null,null,null,null,null,null,null,null,null,null,"May",20.8,52.9,19.419999999999998,34]
[null,null,null,null,null,null,null,null,null,null,"Jun",9.4,41.2,9.1550000000000011,19.399999999999999]
[null,null,null,null,null,null,null,null,null,null,"Jul",7.8,21.8,7.7645161290322582,13.4]
[null,null,null,null,null,null,null,null,null,null,"Aug",12.1,48.9,12.080645161290324,25.2]
[null,null,null,null,null,null,null,null,null,null,"Sep",13.9,72.599999999999994,13.863333333333328,28.2]
[null,null,null,null,null,null,null,null,null,null,"Oct",19.757430095076156,67.080352783203125,19.757430095076156,27.805004119873047]
[null,null,null,null,null,null,null,null,null,null,"Nov",17.376995614122031,52.707530975341797,17.376995614122031,29.47627067565918]
[null,null,null,null,null,null,null,null,null,null,"Dec",25.404527776343848,117.23346710205078,25.404527776343848,36.103473663330078]
[null,null,null,null,null,null,null,null,null,null,"Annual",{"$f":"AVERAGE(L22:L33)","v":18.928246123795169},{"$f":"MAX(M22:M33)","v":117.23346710205078},{"$f":"AVERAGE(N22:N33)","v":18.800129124307201},{"$f":"MAX(O22:O33)","v":36.103473663330078}]
[]
[null,null,null,null,null,null,null,null,null,{"$f":"+A5","v":2025},"mg/Nm3","Monthly mean of half-hourly averages","Highest half- hourly average","Monthly mean of  daily averages","Highest daily average"]
[null,null,null,null,null,null,null,null,null,"A3","Jan"]
[null,null,null,null,null,null,null,null,null,null,"Feb"]
[null,null,null,null,null,null,null,null,null,null,"Mar"]
[null,null,null,null,null,null,null,null,null,null,"Apr"]
[null,null,null,null,null,null,null,null,null,null,"May"]
[null,null,null,null,null,null,null,null,null,null,"Jun"]
[null,null,null,null,null,null,null,null,null,null,"Jul"]
[null,null,null,null,null,null,null,null,null,null,"Aug"]
[null,null,null,null,null,null,null,null,null,null,"Sep"]
[null,null,null,null,null,null,null,null,null,null,"Oct"]
[null,null,null,null,null,null,null,null,null,null,"Nov"]
["Comments :",null,null,null,null,null,null,null,null,null,"Dec"]
[null,null,null,null,null,null,null,null,null,null,"Annual",{"$f":"AVERAGE(L37:L48)","v":{"$error":"#DIV/0!"}},{"$f":"MAX(M37:M48)","v":0},{"$f":"AVERAGE(N37:N48)","v":{"$error":"#DIV/0!"}},{"$f":"MAX(O37:O48)","v":0}]
[]
[null,null,null,null,null,null,null,null,null,{"$f":"+A5","v":2025},"mg/Nm3","Monthly mean of half-hourly averages","Highest half- hourly average","Monthly mean of  daily averages","Highest daily average"]
[null,null,null,null,null,null,null,null,null,"A4","Jan"]
[null,null,null,null,null,null,null,null,null,null,"Feb"]
[null,null,null,null,null,null,null,null,null,null,"Mar"]
[null,null,null,null,null,null,null,null,null,null,"Apr"]
[null,null,null,null,null,null,null,null,null,null,"May"]
[null,null,null,null,null,null,null,null,null,null,"Jun"]
[null,null,null,null,null,null,null,null,null,null,"Jul"]
[null,null,null,null,null,null,null,null,null,null,"Aug"]
[null,null,null,null,null,null,null,null,null,null,"Sep"]
[null,null,null,null,null,null,null,null,null,null,"Oct"]
[null,null,null,null,null,null,null,null,null,null,"Nov"]
[null,null,null,null,null,null,null,null,null,null,"Dec"]
[null,null,null,null,null,null,null,null,null,null,"Annual",{"$f":"AVERAGE(L52:L63)","v":{"$error":"#DIV/0!"}},{"$f":"MAX(M52:M63)","v":0},{"$f":"AVERAGE(N52:N63)","v":{"$error":"#DIV/0!"}},{"$f":"MAX(O52:O63)","v":0}]
[]
[null,null,null,null,null,null,null,null,null,{"$f":"+A5","v":2025},"mg/Nm3","Monthly mean of half-hourly averages","Highest half- hourly average","Monthly mean of  daily averages","Highest daily average"]
[null,null,null,null,null,null,null,null,null,"A5","Jan"]
[null,null,null,null,null,null,null,null,null,null,"Feb"]
[null,null,null,null,null,null,null,null,null,null,"Mar"]
[null,null,null,null,null,null,null,null,null,null,"Apr"]
[null,null,null,null,null,null,null,null,null,null,"May"]
[null,null,null,null,null,null,null,null,null,null,"Jun"]
[null,null,null,null,null,null,null,null,null,null,"Jul"]
[null,null,null,null,null,null,null,null,null,null,"Aug"]
[null,null,null,null,null,null,null,null,null,null,"Sep"]
[null,null,null,null,null,null,null,null,null,null,"Oct"]
[null,null,null,null,null,null,null,null,null,null,"Nov"]
[null,null,null,null,null,null,null,null,null,null,"Dec"]
[null,null,null,null,null,null,null,null,null,null,"Annual",{"$f":"AVERAGE(L67:L78)","v":{"$error":"#DIV/0!"}},{"$f":"MAX(M67:M78)","v":0},{"$f":"AVERAGE(N67:N78)","v":{"$error":"#DIV/0!"}},{"$f":"MAX(O67:O78)","v":0}]

{"sheet":"NOx","index":16,"n_rows":79,"n_cols":17,"rows_kept":79,"cut":false,"hidden":false,"merged":[[3,16,7,18],[9,16,11,18],[12,16,15,18],[66,9,78,9],[4,1,4,3],[4,4,4,6],[4,9,4,14],[6,9,18,9],[21,9,33,9],[36,9,48,9],[47,0,47,6],[48,0,51,6],[51,9,63,9],[18,4,18,6]]}
[{"$f":"+'Cover Page'!$B$29","v":"Annual Performance Report 2025"},null,null,null,{"$f":"+'Cover Page'!$B$33","v":"Suffolk EfW"}]
[]
["Monitoring of Oxides of Nitrogen emissions",null,null,"Whole Installation",null,null,"See  Notes in Cell Q3",null,null,{"$f":"+A3","v":"Monitoring of Oxides of Nitrogen emissions"},null,null,null,"Per Combustion Line",null,null,"Notes:"]
[null,null,null,null,null,null,null,null,null,null,null,null,null,null,null,null,"User to add logic to complete Whole installation, Table A5:G18. From the data in Per Combustion Line, Table J6:O79, subject to No. of lines installed"]
[{"$f":"+'Cover Page'!C39","v":2025},"1/2 Hourly Reference Periods",null,null,"Daily Reference Periods"]
["mg/Nm3","1/2 hourly NOx ELV","Monthly mean of half-hourly averages","Highest half- hourly average","Daily NOx ELV","Monthly mean of  daily averages","Highest daily average",null,null,{"$f":"+A5","v":2025},"mg/Nm3","Monthly mean of half-hourly averages","Highest half- hourly average","Monthly mean of  daily averages","Highest daily average"]
["Jan",400,{"$f":"AVERAGE(L7,L22)","v":163.89999999999998},{"$f":"MAX(M7,M22)","v":185.8},180,{"$f":"AVERAGE(N7,N22)","v":164.14631336405529},{"$f":"MAX(O7,O22)","v":165.3},null,null,"A1","Jan",163.6,185.8,163.63548387096773,164.9]
["Feb",400,{"$f":"AVERAGE(L8,L23)","v":164.75},{"$f":"MAX(M8,M23)","v":209.5},180,{"$f":"AVERAGE(N8,N23)","v":164.73392857142855},{"$f":"MAX(O8,O23)","v":171.9},null,null,null,"Feb",164.2,209.5,164.22857142857143,171.3]
["Mar",400,159.80000000000001,179.9,180,159.78387096774193,165.3,null,null,null,"Mar",154.69999999999999,175.5,154.69999999999999,161.4,null,"Whole Installation table A5:G18:"]
["Apr",400,162.80000000000001,233.3,180,162.89529411764704,165.3,null,null,null,"Apr",160.9,195.1,161.07058823529411,164.2,null,"Mean: for 1/2 hourly and daily periods calculate mean of values across all operational combustion lines for the month"]
["May",400,162.55000000000001,194.9,180,162.07749999999999,165.4,null,null,null,"May",160.5,173.8,159.38000000000002,164.8]
["Jun",400,163.64999999999998,201.5,180,163.68405172413793,165.1,null,null,null,"Jun",164.1,201.5,164.19310344827585,164.9]
["Jul",400,164.35000000000002,192.4,180,164.37096774193543,165.2,null,null,null,"Jul",163.9,188.2,163.93870967741927,165,null,"Maximum: for 1/2 hourly and daily periods use the highest value across all operational combustion lines for the month"]
["Aug",400,164.45,184.6,180,164.43709677419358,165.3,null,null,null,"Aug",164.4,184.6,164.41612903225806,164.9]
["Sep",400,163.75,211.7,180,163.73000000000002,165.5,null,null,null,"Sep",162.6,187,162.58000000000001,164.5]
["Oct",400,164.26297247455736,208.09245300292969,180,164.26297247455736,168.79917907714844,null,null,null,"Oct",163.69739591867332,190.31501770019531,163.69739591867332,164.81785583496094]
["Nov",400,164.11679226613822,195.35975646972656,180,164.11679226613822,166.34121704101563,null,null,null,"Nov",163.4130547335956,177.904541015625,163.4130547335956,164.78164672851563]
["Dec",400,164.22369161728892,209.89407348632813,180,164.22369161728892,166.20431518554688,null,null,null,"Dec",163.40520407563898,189.70686340332031,163.40520407563898,164.73452758789063]
[null,null,null,null,null,null,null,null,null,null,"Annual",{"$f":"AVERAGE(L7:L18)","v":162.451304560659},{"$f":"MAX(M7:M18)","v":209.5},{"$f":"AVERAGE(N7:N18)","v":162.38818670172449},{"$f":"MAX(O7:O18)","v":171.3}]
[]
[null,null,null,null,null,null,null,null,null,{"$f":"+A5","v":2025},"mg/Nm3","Monthly mean of half-hourly averages","Highest half- hourly average","Monthly mean of  daily averages","Highest daily average"]
[null,null,null,null,null,null,null,null,null,"A2","Jan",164.2,180,164.65714285714284,165.3]
[null,null,null,null,null,null,null,null,null,null,"Feb",165.3,205.5,165.23928571428567,171.9]
[null,null,null,null,null,null,null,null,null,null,"Mar",164.9,179.9,164.86774193548388,165.3]
[null,null,null,null,null,null,null,null,null,null,"Apr",164.7,233.3,164.72,165.3]
[null,null,null,null,null,null,null,null,null,null,"May",164.6,194.9,164.77499999999998,165.4]
[null,null,null,null,null,null,null,null,null,null,"Jun",163.19999999999999,178.5,163.17500000000001,165.1]
[null,null,null,null,null,null,null,null,null,null,"Jul",164.8,192.4,164.80322580645156,165.2]
[null,null,null,null,null,null,null,null,null,null,"Aug",164.5,179.3,164.4580645161291,165.3]
[null,null,null,null,null,null,null,null,null,null,"Sep",164.9,211.7,164.88000000000002,165.5]
[null,null,null,null,null,null,null,null,null,null,"Oct",164.82854903044139,208.09245300292969,164.82854903044139,168.79917907714844]
[null,null,null,null,null,null,null,null,null,null,"Nov",164.82052979868084,195.35975646972656,164.82052979868084,166.34121704101563]
[null,null,null,null,null,null,null,null,null,null,"Dec",165.04217915893884,209.89407348632813,165.04217915893884,166.20431518554688]
[null,null,null,null,null,null,null,null,null,null,"Annual",{"$f":"AVERAGE(L22:L33)","v":164.64927149900507},{"$f":"MAX(M22:M33)","v":233.3},{"$f":"AVERAGE(N22:N33)","v":164.68889323479615},{"$f":"MAX(O22:O33)","v":171.9}]
[]
[null,null,null,null,null,null,null,null,null,{"$f":"+A5","v":2025},"mg/Nm3","Monthly mean of half-hourly averages","Highest half- hourly average","Monthly mean of  daily averages","Highest daily average"]
[null,null,null,null,null,null,null,null,null,"A3","Jan"]
[null,null,null,null,null,null,null,null,null,null,"Feb"]
[null,null,null,null,null,null,null,null,null,null,"Mar"]
[null,null,null,null,null,null,null,null,null,null,"Apr"]
[null,null,null,null,null,null,null,null,null,null,"May"]
[null,null,null,null,null,null,null,null,null,null,"Jun"]
[null,null,null,null,null,null,null,null,null,null,"Jul"]
[null,null,null,null,null,null,null,null,null,null,"Aug"]
[null,null,null,null,null,null,null,null,null,null,"Sep"]
[null,null,null,null,null,null,null,null,null,null,"Oct"]
[null,null,null,null,null,null,null,null,null,null,"Nov"]
["Comments :",null,null,null,null,null,null,null,null,null,"Dec"]
[null,null,null,null,null,null,null,null,null,null,"Annual",{"$f":"AVERAGE(L37:L48)","v":{"$error":"#DIV/0!"}},{"$f":"MAX(M37:M48)","v":0},{"$f":"AVERAGE(N37:N48)","v":{"$error":"#DIV/0!"}},{"$f":"MAX(O37:O48)","v":0}]
[]
[null,null,null,null,null,null,null,null,null,{"$f":"+A5","v":2025},"mg/Nm3","Monthly mean of half-hourly averages","Highest half- hourly average","Monthly mean of  daily averages","Highest daily average"]
[null,null,null,null,null,null,null,null,null,"A4","Jan"]
[null,null,null,null,null,null,null,null,null,null,"Feb"]
[null,null,null,null,null,null,null,null,null,null,"Mar"]
[null,null,null,null,null,null,null,null,null,null,"Apr"]
[null,null,null,null,null,null,null,null,null,null,"May"]
[null,null,null,null,null,null,null,null,null,null,"Jun"]
[null,null,null,null,null,null,null,null,null,null,"Jul"]
[null,null,null,null,null,null,null,null,null,null,"Aug"]
[null,null,null,null,null,null,null,null,null,null,"Sep"]
[null,null,null,null,null,null,null,null,null,null,"Oct"]
[null,null,null,null,null,null,null,null,null,null,"Nov"]
[null,null,null,null,null,null,null,null,null,null,"Dec"]
[null,null,null,null,null,null,null,null,null,null,"Annual",{"$f":"AVERAGE(L52:L63)","v":{"$error":"#DIV/0!"}},{"$f":"MAX(M52:M63)","v":0},{"$f":"AVERAGE(N52:N63)","v":{"$error":"#DIV/0!"}},{"$f":"MAX(O52:O63)","v":0}]
[]
[null,null,null,null,null,null,null,null,null,{"$f":"+A5","v":2025},"mg/Nm3","Monthly mean of half-hourly averages","Highest half- hourly average","Monthly mean of  daily averages","Highest daily average"]
[null,null,null,null,null,null,null,null,null,"A5","Jan"]
[null,null,null,null,null,null,null,null,null,null,"Feb"]
[null,null,null,null,null,null,null,null,null,null,"Mar"]
[null,null,null,null,null,null,null,null,null,null,"Apr"]
[null,null,null,null,null,null,null,null,null,null,"May"]
[null,null,null,null,null,null,null,null,null,null,"Jun"]
[null,null,null,null,null,null,null,null,null,null,"Jul"]
[null,null,null,null,null,null,null,null,null,null,"Aug"]
[null,null,null,null,null,null,null,null,null,null,"Sep"]
[null,null,null,null,null,null,null,null,null,null,"Oct"]
[null,null,null,null,null,null,null,null,null,null,"Nov"]
[null,null,null,null,null,null,null,null,null,null,"Dec"]
[null,null,null,null,null,null,null,null,null,null,"Annual",{"$f":"AVERAGE(L67:L78)","v":{"$error":"#DIV/0!"}},{"$f":"MAX(M67:M78)","v":0},{"$f":"AVERAGE(N67:N78)","v":{"$error":"#DIV/0!"}},{"$f":"MAX(O67:O78)","v":0}]

{"sheet":"TOC","index":17,"n_rows":79,"n_cols":17,"rows_kept":79,"cut":false,"hidden":false,"merged":[[3,16,7,18],[9,16,11,18],[12,16,15,18],[66,9,78,9],[4,1,4,3],[4,4,4,6],[4,9,4,14],[6,9,18,9],[21,9,33,9],[36,9,48,9],[47,0,47,6],[48,0,51,6],[51,9,63,9]]}
[{"$f":"+'Cover Page'!$B$29","v":"Annual Performance Report 2025"},null,null,null,{"$f":"+'Cover Page'!$B$33","v":"Suffolk EfW"}]
[]
["Monitoring of Total organic carbon emissions",null,null,"Whole Installation",null,null,"See  Notes in Cell Q3",null,null,{"$f":"+A3","v":"Monitoring of Total organic carbon emissions"},null,null,null,"Per Combustion Line",null,null,"Notes:"]
[null,null,null,null,null,null,null,null,null,null,null,null,null,null,null,null,"User to add logic to complete Whole installation, Table A5:G18. From the data in Per Combustion Line, Table J6:O79, subject to No. of lines installed"]
[{"$f":"+'Cover Page'!C39","v":2025},"1/2 Hourly Reference Periods",null,null,"Daily Reference Periods"]
["mg/Nm3","1/2 hourly TOC ELV","Monthly mean of half-hourly averages","Highest half- hourly average","Daily TOC ELV","Monthly mean of  daily averages","Highest daily average",null,null,{"$f":"+A5","v":2025},"mg/Nm3","Monthly mean of half-hourly averages","Highest half- hourly average","Monthly mean of  daily averages","Highest daily average"]
["Jan",20,{"$f":"AVERAGE(L7,L22)","v":0.1},{"$f":"MAX(M7,M22)","v":5.0999999999999996},10,{"$f":"AVERAGE(N7,N22)","v":0.10063364055299544},{"$f":"MAX(O7,O22)","v":0.3},null,null,"A1","Jan",0.1,5.0999999999999996,5.4838709677419377E-2,0.2]
["Feb",20,{"$f":"AVERAGE(L8,L23)","v":0.15000000000000002},{"$f":"MAX(M8,M23)","v":19.7},10,{"$f":"AVERAGE(N8,N23)","v":0.12678571428571433},{"$f":"MAX(O8,O23)","v":0.7},null,null,null,"Feb",0.1,3.4,6.4285714285714307E-2,0.3]
["Mar",20,0.1,6.4,10,8.8291517323775395E-2,0.3,null,null,null,"Mar",0,4.3,1.8518518518518517E-2,0.1,null,"Whole Installation table A5:G18:"]
["Apr",20,0.15000000000000002,40.799999999999997,10,0.14852941176470591,1,null,null,null,"Apr",0.1,9,4.7058823529411764E-2,0.4,null,"Mean: for 1/2 hourly and daily periods calculate mean of values across all operational combustion lines for the month"]
["May",20,0.35,6.7,10,0.34345238095238095,0.6,null,null,null,"May",0.2,6.7,0.22857142857142856,0.3]
["Jun",20,0.2,19.8,10,0.21379310344827587,0.7,null,null,null,"Jun",0.1,9.6999999999999993,0.12758620689655176,0.3]
["Jul",20,0.1,9.1999999999999993,10,8.8709677419354871E-2,0.4,null,null,null,"Jul",0,9.1999999999999993,1.6129032258064516E-2,0.2,null,"Maximum: for 1/2 hourly and daily periods use the highest value across all operational combustion lines for the month"]
["Aug",20,0.15000000000000002,10.199999999999999,10,0.1370967741935484,0.4,null,null,null,"Aug",0.1,9.1,4.1935483870967738E-2,0.3]
["Sep",20,0.1,14.4,10,9.9999999999999978E-2,0.5,null,null,null,"Sep",0,2.1,1.0000000000000002E-2,0.1]
["Oct",20,3.9646642525166517E-2,6.121345043182373,10,3.9646642525166517E-2,0.19333100318908691,null,null,null,"Oct",1.7908049802185556E-2,4.5226001739501953,1.7908049802185556E-2,0.10805000364780426]
["Nov",20,5.3058445583173033E-2,10.428446769714355,10,5.3058445583173033E-2,0.39305099844932556,null,null,null,"Nov",2.9195085016019508E-2,6.1918768882751465,2.9195085016019508E-2,0.14376400411128998]
["Dec",20,5.6589945086250898E-2,7.8844509124755859,10,5.6589945086250898E-2,0.30837899446487427,null,null,null,"Dec",3.770546586884542E-2,7.8844509124755859,3.770546586884542E-2,0.30837899446487427]
[null,null,null,null,null,null,null,null,null,null,"Annual",{"$f":"AVERAGE(L7:L18)","v":6.5400716723920865E-2},{"$f":"MAX(M7:M18)","v":9.6999999999999993},{"$f":"AVERAGE(N7:N18)","v":5.7811043191260576E-2},{"$f":"MAX(O7:O18)","v":0.4}]
[]
[null,null,null,null,null,null,null,null,null,{"$f":"+A5","v":2025},"mg/Nm3","Monthly mean of half-hourly averages","Highest half- hourly average","Monthly mean of  daily averages","Highest daily average"]
[null,null,null,null,null,null,null,null,null,"A2","Jan",0.1,3.9,0.14642857142857149,0.3]
[null,null,null,null,null,null,null,null,null,null,"Feb",0.2,19.7,0.18928571428571433,0.7]
[null,null,null,null,null,null,null,null,null,null,"Mar",0.2,6.4,0.15806451612903227,0.3]
[null,null,null,null,null,null,null,null,null,null,"Apr",0.2,40.799999999999997,0.25000000000000006,1]
[null,null,null,null,null,null,null,null,null,null,"May",0.5,1.2,0.45833333333333331,0.6]
[null,null,null,null,null,null,null,null,null,null,"Jun",0.3,19.8,0.3,0.7]
[null,null,null,null,null,null,null,null,null,null,"Jul",0.2,8.8000000000000007,0.16129032258064521,0.4]
[null,null,null,null,null,null,null,null,null,null,"Aug",0.2,10.199999999999999,0.23225806451612907,0.4]
[null,null,null,null,null,null,null,null,null,null,"Sep",0.2,14.4,0.18999999999999995,0.5]
[null,null,null,null,null,null,null,null,null,null,"Oct",6.1385235248147485E-2,6.121345043182373,6.1385235248147485E-2,0.19333100318908691]
[null,null,null,null,null,null,null,null,null,null,"Nov",7.6921806150326566E-2,10.428446769714355,7.6921806150326566E-2,0.39305099844932556]
[null,null,null,null,null,null,null,null,null,null,"Dec",7.5474424303656376E-2,4.7110710144042969,7.5474424303656376E-2,0.16821800172328949]
[null,null,null,null,null,null,null,null,null,null,"Annual",{"$f":"AVERAGE(L22:L33)","v":0.19281512214184424},{"$f":"MAX(M22:M33)","v":40.799999999999997},{"$f":"AVERAGE(N22:N33)","v":0.19162016566462969},{"$f":"MAX(O22:O33)","v":1}]
[]
[null,null,null,null,null,null,null,null,null,{"$f":"+A5","v":2025},"mg/Nm3","Monthly mean of half-hourly averages","Highest half- hourly average","Monthly mean of  daily averages","Highest daily average"]
[null,null,null,null,null,null,null,null,null,"A3","Jan"]
[null,null,null,null,null,null,null,null,null,null,"Feb"]
[null,null,null,null,null,null,null,null,null,null,"Mar"]
[null,null,null,null,null,null,null,null,null,null,"Apr"]
[null,null,null,null,null,null,null,null,null,null,"May"]
[null,null,null,null,null,null,null,null,null,null,"Jun"]
[null,null,null,null,null,null,null,null,null,null,"Jul"]
[null,null,null,null,null,null,null,null,null,null,"Aug"]
[null,null,null,null,null,null,null,null,null,null,"Sep"]
[null,null,null,null,null,null,null,null,null,null,"Oct"]
[null,null,null,null,null,null,null,null,null,null,"Nov"]
["Comments :",null,null,null,null,null,null,null,null,null,"Dec"]
[null,null,null,null,null,null,null,null,null,null,"Annual",{"$f":"AVERAGE(L37:L48)","v":{"$error":"#DIV/0!"}},{"$f":"MAX(M37:M48)","v":0},{"$f":"AVERAGE(N37:N48)","v":{"$error":"#DIV/0!"}},{"$f":"MAX(O37:O48)","v":0}]
[]
[null,null,null,null,null,null,null,null,null,{"$f":"+A5","v":2025},"mg/Nm3","Monthly mean of half-hourly averages","Highest half- hourly average","Monthly mean of  daily averages","Highest daily average"]
[null,null,null,null,null,null,null,null,null,"A4","Jan"]
[null,null,null,null,null,null,null,null,null,null,"Feb"]
[null,null,null,null,null,null,null,null,null,null,"Mar"]
[null,null,null,null,null,null,null,null,null,null,"Apr"]
[null,null,null,null,null,null,null,null,null,null,"May"]
[null,null,null,null,null,null,null,null,null,null,"Jun"]
[null,null,null,null,null,null,null,null,null,null,"Jul"]
[null,null,null,null,null,null,null,null,null,null,"Aug"]
[null,null,null,null,null,null,null,null,null,null,"Sep"]
[null,null,null,null,null,null,null,null,null,null,"Oct"]
[null,null,null,null,null,null,null,null,null,null,"Nov"]
[null,null,null,null,null,null,null,null,null,null,"Dec"]
[null,null,null,null,null,null,null,null,null,null,"Annual",{"$f":"AVERAGE(L52:L63)","v":{"$error":"#DIV/0!"}},{"$f":"MAX(M52:M63)","v":0},{"$f":"AVERAGE(N52:N63)","v":{"$error":"#DIV/0!"}},{"$f":"MAX(O52:O63)","v":0}]
[]
[null,null,null,null,null,null,null,null,null,{"$f":"+A5","v":2025},"mg/Nm3","Monthly mean of half-hourly averages","Highest half- hourly average","Monthly mean of  daily averages","Highest daily average"]
[null,null,null,null,null,null,null,null,null,"A5","Jan"]
[null,null,null,null,null,null,null,null,null,null,"Feb"]
[null,null,null,null,null,null,null,null,null,null,"Mar"]
[null,null,null,null,null,null,null,null,null,null,"Apr"]
[null,null,null,null,null,null,null,null,null,null,"May"]
[null,null,null,null,null,null,null,null,null,null,"Jun"]
[null,null,null,null,null,null,null,null,null,null,"Jul"]
[null,null,null,null,null,null,null,null,null,null,"Aug"]
[null,null,null,null,null,null,null,null,null,null,"Sep"]
[null,null,null,null,null,null,null,null,null,null,"Oct"]
[null,null,null,null,null,null,null,null,null,null,"Nov"]
[null,null,null,null,null,null,null,null,null,null,"Dec"]
[null,null,null,null,null,null,null,null,null,null,"Annual",{"$f":"AVERAGE(L67:L78)","v":{"$error":"#DIV/0!"}},{"$f":"MAX(M67:M78)","v":0},{"$f":"AVERAGE(N67:N78)","v":{"$error":"#DIV/0!"}},{"$f":"MAX(O67:O78)","v":0}]

{"sheet":"Particulates","index":18,"n_rows":79,"n_cols":17,"rows_kept":79,"cut":false,"hidden":false,"merged":[[4,16,8,18],[10,16,12,18],[13,16,16,18],[66,9,78,9],[4,1,4,3],[4,4,4,6],[4,9,4,14],[6,9,18,9],[21,9,33,9],[36,9,48,9],[47,0,47,6],[48,0,51,6],[51,9,63,9],[18,4,18,6]]}
[{"$f":"+'Cover Page'!$B$29","v":"Annual Performance Report 2025"},null,null,null,{"$f":"+'Cover Page'!$B$33","v":"Suffolk EfW"}]
[]
["Monitoring of Particulate matter emissions",null,null,"Whole Installation",null,null,"See  Notes in Cell Q3",null,null,{"$f":"+A3","v":"Monitoring of Particulate matter emissions"},null,null,null,"Per Combustion Line",null,null,"Notes:"]
[]
[{"$f":"+'Cover Page'!C39","v":2025},"1/2 Hourly Reference Periods",null,null,"Daily Reference Periods",null,null,null,null,null,null,null,null,null,null,null,"User to add logic to complete Whole installation, Table A5:G18. From the data in Per Combustion Line, Table J6:O79, subject to No. of lines installed"]
["mg/Nm3","1/2 hourly PM ELV","Monthly mean of half-hourly averages","Highest half- hourly average","Daily PM ELV","Monthly mean of  daily averages","Highest daily average",null,null,{"$f":"+A5","v":2025},"mg/Nm3","Monthly mean of half-hourly averages","Highest half- hourly average","Monthly mean of  daily averages","Highest daily average"]
["Jan",30,{"$f":"AVERAGE(L7,L22)","v":1.1499999999999999},{"$f":"MAX(M7,M22)","v":1.9},5,{"$f":"AVERAGE(N7,N22)","v":1.1433755760368662},{"$f":"MAX(O7,O22)","v":1.4},null,null,"A1","Jan",1,1.3,0.99032258064516143,1.1000000000000001]
["Feb",30,{"$f":"AVERAGE(L8,L23)","v":1.1499999999999999},{"$f":"MAX(M8,M23)","v":1.4},5,{"$f":"AVERAGE(N8,N23)","v":1.1392857142857145},{"$f":"MAX(O8,O23)","v":1.3},null,null,null,"Feb",1,1.4,1.0071428571428573,1.2]
["Mar",30,1.2999999999999998,2.5,5,1.3090203106332139,1.8,null,null,null,"Mar",1.4,2.5,1.414814814814815,1.8]
["Apr",30,1.4,2.2999999999999998,5,1.3795098039215685,1.7,null,null,null,"Apr",1.6,2.2999999999999998,1.5823529411764703,1.7,null,"Whole Installation table A5:G18:"]
["May",30,1.35,7.1,5,1.3428571428571425,1.8,null,null,null,"May",1.5,7.1,1.4857142857142855,1.8,null,"Mean: for 1/2 hourly and daily periods calculate mean of values across all operational combustion lines for the month"]
["Jun",30,1.5,2.8,5,1.498448275862069,2.2999999999999998,null,null,null,"Jun",1.8,2.8,1.8068965517241382,2.2999999999999998]
["Jul",30,1.35,2.6,5,1.3516129032258068,2.4,null,null,null,"Jul",1.5,2.6,1.4838709677419359,2.4]
["Aug",30,1.35,1.8,5,1.3580645161290321,1.7,null,null,null,"Aug",1.5,1.8,1.4806451612903226,1.7,null,"Maximum: for 1/2 hourly and daily periods use the highest value across all operational combustion lines for the month"]
["Sep",30,1.2999999999999998,1.7,5,1.2849999999999997,1.5,null,null,null,"Sep",1.4,1.7,1.3633333333333328,1.5]
["Oct",30,1.3189512049829459,1.7101490497589111,5,1.3189512049829459,1.5699930191040039,null,null,null,"Oct",1.3868345294222735,1.7101490497589111,1.3868345294222735,1.5699930191040039]
["Nov",30,1.1826481299043272,1.636652946472168,5,1.1826481299043272,1.4062910079956055,null,null,null,"Nov",1.0811650345915074,1.636652946472168,1.0811650345915074,1.4062910079956055]
["Dec",30,0.88327424030911217,1.4592629671096802,5,0.88327424030911217,1.3530800342559814,null,null,null,"Dec",0.45829239693940965,0.84937202930450439,0.45829239693940965,0.59686899185180664]
[null,null,null,null,null,null,null,null,null,null,"Annual",{"$f":"AVERAGE(L7:L18)","v":1.3021909967460992},{"$f":"MAX(M7:M18)","v":7.1},{"$f":"AVERAGE(N7:N18)","v":1.2951154545447092},{"$f":"MAX(O7:O18)","v":2.4}]
[]
[null,null,null,null,null,null,null,null,null,{"$f":"+A5","v":2025},"mg/Nm3","Monthly mean of half-hourly averages","Highest half- hourly average","Monthly mean of  daily averages","Highest daily average"]
[null,null,null,null,null,null,null,null,null,"A2","Jan",1.3,1.9,1.296428571428571,1.4]
[null,null,null,null,null,null,null,null,null,null,"Feb",1.3,1.4,1.2714285714285716,1.3]
[null,null,null,null,null,null,null,null,null,null,"Mar",1.2,1.4,1.2032258064516128,1.3]
[null,null,null,null,null,null,null,null,null,null,"Apr",1.2,1.7,1.1766666666666665,1.2]
[null,null,null,null,null,null,null,null,null,null,"May",1.2,1.6,1.1999999999999997,1.2]
[null,null,null,null,null,null,null,null,null,null,"Jun",1.2,1.6,1.1899999999999997,1.3]
[null,null,null,null,null,null,null,null,null,null,"Jul",1.2,1.9,1.2193548387096775,1.3]
[null,null,null,null,null,null,null,null,null,null,"Aug",1.2,1.4,1.2354838709677414,1.3]
[null,null,null,null,null,null,null,null,null,null,"Sep",1.2,1.4,1.2066666666666666,1.3]
[null,null,null,null,null,null,null,null,null,null,"Oct",1.2510678805436186,1.7099540233612061,1.2510678805436186,1.3112330436706543]
[null,null,null,null,null,null,null,null,null,null,"Nov",1.2841312252171471,1.6040220260620117,1.2841312252171471,1.3377840518951416]
[null,null,null,null,null,null,null,null,null,null,"Dec",1.3082560836788146,1.4592629671096802,1.3082560836788146,1.3530800342559814]
[null,null,null,null,null,null,null,null,null,null,"Annual",{"$f":"AVERAGE(L22:L33)","v":1.2369545991199649},{"$f":"MAX(M22:M33)","v":1.9},{"$f":"AVERAGE(N22:N33)","v":1.2368925151465906},{"$f":"MAX(O22:O33)","v":1.4}]
[]
[null,null,null,null,null,null,null,null,null,{"$f":"+A5","v":2025},"mg/Nm3","Monthly mean of half-hourly averages","Highest half- hourly average","Monthly mean of  daily averages","Highest daily average"]
[null,null,null,null,null,null,null,null,null,"A3","Jan"]
[null,null,null,null,null,null,null,null,null,null,"Feb"]
[null,null,null,null,null,null,null,null,null,null,"Mar"]
[null,null,null,null,null,null,null,null,null,null,"Apr"]
[null,null,null,null,null,null,null,null,null,null,"May"]
[null,null,null,null,null,null,null,null,null,null,"Jun"]
[null,null,null,null,null,null,null,null,null,null,"Jul"]
[null,null,null,null,null,null,null,null,null,null,"Aug"]
[null,null,null,null,null,null,null,null,null,null,"Sep"]
[null,null,null,null,null,null,null,null,null,null,"Oct"]
[null,null,null,null,null,null,null,null,null,null,"Nov"]
["Comments :",null,null,null,null,null,null,null,null,null,"Dec"]
[null,null,null,null,null,null,null,null,null,null,"Annual",{"$f":"AVERAGE(L37:L48)","v":{"$error":"#DIV/0!"}},{"$f":"MAX(M37:M48)","v":0},{"$f":"AVERAGE(N37:N48)","v":{"$error":"#DIV/0!"}},{"$f":"MAX(O37:O48)","v":0}]
[]
[null,null,null,null,null,null,null,null,null,{"$f":"+A5","v":2025},"mg/Nm3","Monthly mean of half-hourly averages","Highest half- hourly average","Monthly mean of  daily averages","Highest daily average"]
[null,null,null,null,null,null,null,null,null,"A4","Jan"]
[null,null,null,null,null,null,null,null,null,null,"Feb"]
[null,null,null,null,null,null,null,null,null,null,"Mar"]
[null,null,null,null,null,null,null,null,null,null,"Apr"]
[null,null,null,null,null,null,null,null,null,null,"May"]
[null,null,null,null,null,null,null,null,null,null,"Jun"]
[null,null,null,null,null,null,null,null,null,null,"Jul"]
[null,null,null,null,null,null,null,null,null,null,"Aug"]
[null,null,null,null,null,null,null,null,null,null,"Sep"]
[null,null,null,null,null,null,null,null,null,null,"Oct"]
[null,null,null,null,null,null,null,null,null,null,"Nov"]
[null,null,null,null,null,null,null,null,null,null,"Dec"]
[null,null,null,null,null,null,null,null,null,null,"Annual",{"$f":"AVERAGE(L52:L63)","v":{"$error":"#DIV/0!"}},{"$f":"MAX(M52:M63)","v":0},{"$f":"AVERAGE(N52:N63)","v":{"$error":"#DIV/0!"}},{"$f":"MAX(O52:O63)","v":0}]
[]
[null,null,null,null,null,null,null,null,null,{"$f":"+A5","v":2025},"mg/Nm3","Monthly mean of half-hourly averages","Highest half- hourly average","Monthly mean of  daily averages","Highest daily average"]
[null,null,null,null,null,null,null,null,null,"A5","Jan"]
[null,null,null,null,null,null,null,null,null,null,"Feb"]
[null,null,null,null,null,null,null,null,null,null,"Mar"]
[null,null,null,null,null,null,null,null,null,null,"Apr"]
[null,null,null,null,null,null,null,null,null,null,"May"]
[null,null,null,null,null,null,null,null,null,null,"Jun"]
[null,null,null,null,null,null,null,null,null,null,"Jul"]
[null,null,null,null,null,null,null,null,null,null,"Aug"]
[null,null,null,null,null,null,null,null,null,null,"Sep"]
[null,null,null,null,null,null,null,null,null,null,"Oct"]
[null,null,null,null,null,null,null,null,null,null,"Nov"]
[null,null,null,null,null,null,null,null,null,null,"Dec"]
[null,null,null,null,null,null,null,null,null,null,"Annual",{"$f":"AVERAGE(L67:L78)","v":{"$error":"#DIV/0!"}},{"$f":"MAX(M67:M78)","v":0},{"$f":"AVERAGE(N67:N78)","v":{"$error":"#DIV/0!"}},{"$f":"MAX(O67:O78)","v":0}]

{"sheet":"CO 95% 10 min","index":19,"n_rows":79,"n_cols":19,"rows_kept":79,"cut":false,"hidden":false,"merged":[[3,18,7,20],[9,18,11,20],[12,18,15,20],[66,10,78,10],[4,1,4,4],[4,5,4,7],[4,10,4,16],[6,10,18,10],[21,10,33,10],[36,10,48,10],[47,0,47,7],[48,0,51,7],[51,10,63,10]]}
[{"$f":"+'Cover Page'!$B$29","v":"Annual Performance Report 2025"},null,null,null,{"$f":"+'Cover Page'!$B$33","v":"Suffolk EfW"}]
[]
["Monitoring of Carbon Monoxide (10-minute avg)",null,null,null,"Whole Installation",null,null,"See  Notes in Cell S3",null,{"$f":"+A3","v":"Monitoring of Carbon Monoxide (10-minute avg)"},null,null,null,null,"Per Combustion Line",null,"Notes:",null,"Notes:"]
[null,null,null,null,null,null,null,null,null,null,null,null,null,null,null,null,null,null,"User to add logic to complete Whole installation, Table A5:H18. From the data in Per Combustion Line, Table K6:Q79, subject to No. of lines installed"]
[{"$f":"+'Cover Page'!C39","v":2025},"10-minute Reference Periods",null,null,null,"Daily Reference Periods"]
["mg/Nm3","95%ile 10-min avg CO ELV","Highest daily 95%ile 10-min average","Monthly mean of 10-min averages","Highest 10-min average","Daily CO ELV","Monthly mean of  daily averages","Highest daily average",null,null,{"$f":"+A5","v":2025},"mg/Nm3","Highest daily 95%ile 10-min average","Monthly mean of 10-min averages","Highest 10-min average","Monthly mean of  daily averages","Highest daily average"]
["Jan",150,{"$f":"MAX(M7,M22)","v":81.154487609863281},{"$f":"AVERAGE(N7,N22)","v":5.5595562551208708},{"$f":"MAX(O7,O22)","v":536.91156005859375},50,{"$f":"AVERAGE(P7,P22)","v":5.5595562551208708},{"$f":"MAX(Q7,Q22)","v":6.3124518394470215},null,null,"A1","Jan",44.576614379882813,4.6332079391962422,303.119384765625,4.6332079391962422,4.9564571380615234]
["Feb",{"$f":"+B7","v":150},{"$f":"MAX(M8,M23)","v":66.674697875976563},{"$f":"AVERAGE(N8,N23)","v":5.7526642977167892},{"$f":"MAX(O8,O23)","v":425.98348999023438},{"$f":"+F7","v":50},{"$f":"AVERAGE(P8,P23)","v":5.7526642977167892},{"$f":"MAX(Q8,Q23)","v":5.8237380981445313},null,null,null,"Feb",66.674697875976563,5.5328578136654363,399.34005737304688,5.5328578136654363,5.8237380981445313]
["Mar",{"$f":"+B8","v":150},33.772090911865234,5.0182115151008873,371.12982177734375,{"$f":"+F8","v":50},5.0182115151008873,5.8135547637939453,null,null,null,"Mar",16.151802062988281,3.9281074036657073,347.2325439453125,3.9281074036657073,3.5143370628356934,null,"Whole Installation table A5:H18:"]
["Apr",150,140.69816589355469,4.9081738653895162,538.3455810546875,50,4.9081738653895162,4.4977741241455078,null,null,null,"Apr",140.69816589355469,4.6375595447022002,320.92013549804688,4.6375595447022002,3.2209620475769043,null,"Mean: for 10-min and daily periods use average of all operational combustion lines."]
["May",150,43.228790283203125,4.276970438494005,378.19747924804688,50,4.276970438494005,8.994415283203125,null,null,null,"May",43.228790283203125,4.5080293286216735,378.19747924804688,4.5080293286216735,8.994415283203125]
["Jun",150,43.876907348632813,4.9544112607456139,557.41302490234375,50,4.9544112607456139,5.5429000854492188,null,null,null,"Jun",43.876907348632813,4.5870584831485868,355.01132202148438,4.5870584831485868,4.1178221702575684]
["Jul",150,35.936607360839844,4.6547380634463931,393.63623046875,50,4.6547380634463931,4.2868399620056152,null,null,null,"Jul",35.936607360839844,4.3017648206255981,387.40130615234375,4.3017648206255981,3.4295239448547363,null,"Maximum: for 10-min and daily periods use the highest of all operational combustion lines in any month."]
["Aug",150,60.35272216796875,4.5536646629076447,437.64227294921875,50,4.5536646629076447,4.6923270225524902,null,null,null,"Aug",60.35272216796875,3.9428441601014264,402.27239990234375,3.9428441601014264,4.6923270225524902]
["Sep",150,14.98766040802002,4.0317269100354478,354.60845947265625,50,4.0317269100354478,3.7315599918365479,null,null,null,"Sep",14.98766040802002,3.6039380335559446,354.60845947265625,3.6039380335559446,2.9685640335083008]
["Oct",150,48.259872436523438,4.8149976060227573,271.30654907226563,50,4.8149976060227573,9.2880735397338867,null,null,null,"Oct",17.848526000976563,3.9803550889828063,271.30654907226563,3.9803550889828063,4.0074291229248047]
["Nov",150,49.478538513183594,5.3687506310447439,815.27545166015625,50,5.3687506310447439,4.6904621124267578,null,null,null,"Nov",49.478538513183594,4.5305376086793556,312.35845947265625,4.5305376086793556,3.6847701072692871]
["Dec",150,36.747425079345703,4.8799114135344128,354.36871337890625,50,4.8799114135344128,4.3660659790039063,null,null,null,"Dec",25.639022827148438,4.4071149750142009,354.36871337890625,4.4071149750142009,4.3504481315612793]
[null,null,null,null,null,null,null,null,null,null,null,"Annual",{"$f":"AVERAGE(M7:M18)","v":46.620837926864624},null,{"$f":"MAX(O7:O18)","v":402.27239990234375},{"$f":"AVERAGE(P7:P18)","v":4.3827812666632644},{"$f":"MAX(Q7:Q18)","v":8.994415283203125}]
[]
[null,null,null,null,null,null,null,null,null,null,{"$f":"+A5","v":2025},"mg/Nm3","Highest daily 95%ile 10-min average","Monthly mean of 10-min averages","Highest 10-min average","Monthly mean of  daily averages","Highest daily average"]
[null,null,null,null,null,null,null,null,null,null,"A2","Jan",81.154487609863281,6.4859045710455003,536.91156005859375,6.4859045710455003,6.3124518394470215]
[null,null,null,null,null,null,null,null,null,null,null,"Feb",33.227394104003906,5.9724707817681413,425.98348999023438,5.9724707817681413,4.5931529998779297]
[null,null,null,null,null,null,null,null,null,null,null,"Mar",33.772090911865234,6.1083156265360667,371.12982177734375,6.1083156265360667,5.8135547637939453]
[null,null,null,null,null,null,null,null,null,null,null,"Apr",47.955238342285156,5.1787881860768312,538.3455810546875,5.1787881860768312,4.4977741241455078]
[null,null,null,null,null,null,null,null,null,null,null,"May",32.964107513427734,4.0459115483663366,212.46650695800781,4.0459115483663366,3.6540100574493408]
[null,null,null,null,null,null,null,null,null,null,null,"Jun",23.83482551574707,5.3217640383426419,557.41302490234375,5.3217640383426419,5.5429000854492188]
[null,null,null,null,null,null,null,null,null,null,null,"Jul",24.593072891235352,5.0077113062671872,393.63623046875,5.0077113062671872,4.2868399620056152]
[null,null,null,null,null,null,null,null,null,null,null,"Aug",25.73023796081543,5.164485165713864,437.64227294921875,5.164485165713864,4.2887167930603027]
[null,null,null,null,null,null,null,null,null,null,null,"Sep",13.480617523193359,4.4595157865149506,323.89501953125,4.4595157865149506,3.7315599918365479]
[null,null,null,null,null,null,null,null,null,null,null,"Oct",48.259872436523438,5.6496401230627074,238.90791320800781,5.6496401230627074,9.2880735397338867]
[null,null,null,null,null,null,null,null,null,null,null,"Nov",43.989101409912109,6.2069636534101313,815.27545166015625,6.2069636534101313,4.6904621124267578]
[null,null,null,null,null,null,null,null,null,null,null,"Dec",36.747425079345703,5.3527078520546247,280.29220581054688,5.3527078520546247,4.3660659790039063]
[null,null,null,null,null,null,null,null,null,null,null,"Annual",{"$f":"AVERAGE(M22:M33)","v":37.142372608184814},null,{"$f":"MAX(O22:O33)","v":815.27545166015625},{"$f":"AVERAGE(P22:P33)","v":5.4128482199299155},{"$f":"MAX(Q22:Q33)","v":9.2880735397338867}]
[]
[null,null,null,null,null,null,null,null,null,null,{"$f":"+A5","v":2025},"mg/Nm3","Highest daily 95%ile 10-min average","Monthly mean of 10-min averages","Highest 10-min average","Monthly mean of  daily averages","Highest daily average"]
[null,null,null,null,null,null,null,null,null,null,"A3","Jan"]
[null,null,null,null,null,null,null,null,null,null,null,"Feb"]
[null,null,null,null,null,null,null,null,null,null,null,"Mar"]
[null,null,null,null,null,null,null,null,null,null,null,"Apr"]
[null,null,null,null,null,null,null,null,null,null,null,"May"]
[null,null,null,null,null,null,null,null,null,null,null,"Jun"]
[null,null,null,null,null,null,null,null,null,null,null,"Jul"]
[null,null,null,null,null,null,null,null,null,null,null,"Aug"]
[null,null,null,null,null,null,null,null,null,null,null,"Sep"]
[null,null,null,null,null,null,null,null,null,null,null,"Oct"]
[null,null,null,null,null,null,null,null,null,null,null,"Nov"]
["Comments :",null,null,null,null,null,null,null,null,null,null,"Dec"]
["Environment Agency explanatory note: The 10-minute average ELV is based on the “95th percentile”. In this case this means that 95% of the 10 minute averages in the relevant 24-hour period (i.e. 137) must be below 150 mg/Nm3, and 5% (i.e. 7) are allowed to be any value above 150 mg/Nm3. Whilst we expect operators to minimise CO emissions at all times, it is perfectly acceptable for the value of the maximum 10-minute average to be above 150 mg/Nm3, provided the 95th percentile ELV has been met for that period. ",null,null,null,null,null,null,null,null,null,null,"Annual",{"$f":"AVERAGE(M37:M48)","v":{"$error":"#DIV/0!"}},null,{"$f":"MAX(O37:O48)","v":0},{"$f":"AVERAGE(P37:P48)","v":{"$error":"#DIV/0!"}},{"$f":"MAX(Q37:Q48)","v":0}]
[]
[null,null,null,null,null,null,null,null,null,null,{"$f":"+A5","v":2025},"mg/Nm3","Highest daily 95%ile 10-min average","Monthly mean of 10-min averages","Highest 10-min average","Monthly mean of  daily averages","Highest daily average"]
[null,null,null,null,null,null,null,null,null,null,"A4","Jan"]
[null,null,null,null,null,null,null,null,null,null,null,"Feb"]
[null,null,null,null,null,null,null,null,null,null,null,"Mar"]
[null,null,null,null,null,null,null,null,null,null,null,"Apr"]
[null,null,null,null,null,null,null,null,null,null,null,"May"]
[null,null,null,null,null,null,null,null,null,null,null,"Jun"]
[null,null,null,null,null,null,null,null,null,null,null,"Jul"]
[null,null,null,null,null,null,null,null,null,null,null,"Aug"]
[null,null,null,null,null,null,null,null,null,null,null,"Sep"]
[null,null,null,null,null,null,null,null,null,null,null,"Oct"]
[null,null,null,null,null,null,null,null,null,null,null,"Nov"]
[null,null,null,null,null,null,null,null,null,null,null,"Dec"]
[null,null,null,null,null,null,null,null,null,null,null,"Annual",{"$f":"AVERAGE(M52:M63)","v":{"$error":"#DIV/0!"}},null,{"$f":"MAX(O52:O63)","v":0},{"$f":"AVERAGE(P52:P63)","v":{"$error":"#DIV/0!"}},{"$f":"MAX(Q52:Q63)","v":0}]
[]
[null,null,null,null,null,null,null,null,null,null,{"$f":"+A5","v":2025},"mg/Nm3","95%ile 10-min avg maximum","Monthly CO 10-min avg mean","10-min avg maximum","Monthly daily mean","Monthly daily maximum"]
[null,null,null,null,null,null,null,null,null,null,"A5","Jan"]
[null,null,null,null,null,null,null,null,null,null,null,"Feb"]
[null,null,null,null,null,null,null,null,null,null,null,"Mar"]
[null,null,null,null,null,null,null,null,null,null,null,"Apr"]
[null,null,null,null,null,null,null,null,null,null,null,"May"]
[null,null,null,null,null,null,null,null,null,null,null,"Jun"]
[null,null,null,null,null,null,null,null,null,null,null,"Jul"]
[null,null,null,null,null,null,null,null,null,null,null,"Aug"]
[null,null,null,null,null,null,null,null,null,null,null,"Sep"]
[null,null,null,null,null,null,null,null,null,null,null,"Oct"]
[null,null,null,null,null,null,null,null,null,null,null,"Nov"]
[null,null,null,null,null,null,null,null,null,null,null,"Dec"]
[null,null,null,null,null,null,null,null,null,null,null,"Annual",{"$f":"AVERAGE(M67:M78)","v":{"$error":"#DIV/0!"}},null,{"$f":"MAX(O67:O78)","v":0},{"$f":"AVERAGE(P67:P78)","v":{"$error":"#DIV/0!"}},{"$f":"MAX(Q67:Q78)","v":0}]

{"sheet":"N20","index":20,"n_rows":79,"n_cols":17,"rows_kept":79,"cut":false,"hidden":false,"merged":[[66,9,78,9],[3,16,7,18],[4,1,4,3],[4,4,4,6],[4,9,4,14],[6,9,18,9],[9,16,11,18],[12,16,15,18],[18,4,18,6],[21,9,33,9],[36,9,48,9],[47,0,47,6],[48,0,51,6],[51,9,63,9]]}
[{"$f":"+'Cover Page'!$B$29","v":"Annual Performance Report 2025"},null,null,null,{"$f":"+'Cover Page'!$B$33","v":"Suffolk EfW"}]
[]
["Monitoring of Nitrous Oxide emissions ",null,null,"Whole Installation",null,null,"See  Notes in Cell Q3",null,null,{"$f":"+A3","v":"Monitoring of Nitrous Oxide emissions "},null,null,null,"Per Combustion Line",null,null,"Notes:"]
[null,null,null,null,null,null,null,null,null,null,null,null,null,null,null,null,"User to add logic to complete Whole installation, Table A5:G18. From the data in Per Combustion Line, Table J6:O79, subject to No. of lines installed"]
[{"$f":"+'Cover Page'!C39","v":2025},"1/2 Hourly Reference Periods",null,null,"Daily Reference Periods"]
["mg/Nm3","1/2 hourly N2O ELV","Monthly mean of half-hourly averages","Highest half- hourly average","Daily N2O ELV","Monthly mean of  daily averages","Highest daily average",null,null,{"$f":"+A5","v":2025},"mg/Nm3","Monthly mean of half-hourly averages","Highest half- hourly average","Monthly mean of  daily averages","Highest daily average"]
["Jan",null,{"$f":"AVERAGE(L7,L22)","v":3.7},{"$f":"MAX(M7,M22)","v":47.5},null,{"$f":"AVERAGE(N7,N22)","v":3.6226382488479256},{"$f":"MAX(O7,O22)","v":6.2},null,null,"A1","Jan",3.7,33.200000000000003,3.6774193548387091,6.2]
["Feb",null,{"$f":"AVERAGE(L8,L23)","v":3.15},{"$f":"MAX(M8,M23)","v":15.7},null,{"$f":"AVERAGE(N8,N23)","v":3.1267857142857149},{"$f":"MAX(O8,O23)","v":7.3},null,null,null,"Feb",3.8,15.7,3.8000000000000007,7.3]
["Mar",null,3.0999999999999996,21.8,null,3.0809438470728789,4.7,null,null,null,"Mar",3.9,21.8,3.8296296296296299,4.7,null,"Whole Installation table A5:G18:"]
["Apr",null,2.85,40.299999999999997,null,2.8049019607843135,4.2,null,null,null,"Apr",3.5,40.299999999999997,3.3764705882352937,4.2,null,"Mean: for 1/2 hourly and daily periods calculate mean of values across all operational combustion lines for the month"]
["May",null,5,56,null,4.7696428571428573,15.1,null,null,null,"May",7.5,56,7.1142857142857139,15.1]
["Jun",null,3.4,45.8,null,3.2807758620689658,5.5,null,null,null,"Jun",3.9,45.8,3.7965517241379314,5.3]
["Jul",null,2.95,7.9,null,2.9790322580645165,4.0999999999999996,null,null,null,"Jul",3.3,7.9,3.3129032258064526,4.0999999999999996,null,"Maximum: for 1/2 hourly and daily periods use the highest value across all operational combustion lines for the month"]
["Aug",null,3.0999999999999996,14.1,null,3.1016129032258068,4.5999999999999996,null,null,null,"Aug",3.4,14.1,3.3612903225806456,4.5999999999999996]
["Sep",null,3.25,13.3,null,3.2183333333333337,4.7,null,null,null,"Sep",3.6,10.8,3.5866666666666664,4.7]
["Oct",null,3.8345966688143012,50.604991912841797,null,3.8345966688143012,5.4669151306152344,null,null,null,"Oct",4.1893263466406188,17.753789901733398,4.1893263466406188,5.4669151306152344]
["Nov",null,4.6354200365786742,51.776885986328125,null,4.6354200365786742,7.2898550033569336,null,null,null,"Nov",4.7059554271451933,27.373203277587891,4.7059554271451933,6.2504568099975586]
["Dec",null,3.9357363699024082,35.2840576171875,null,3.9357363699024082,5.7465839385986328,null,null,null,"Dec",4.1719877928174949,35.2840576171875,4.1719877928174949,5.7465839385986328]
[null,null,null,null,null,null,null,null,null,null,"Annual",{"$f":"AVERAGE(L7:L18)","v":4.1389391305502761},{"$f":"MAX(M7:M18)","v":56},{"$f":"AVERAGE(N7:N18)","v":4.0768738993986959},{"$f":"MAX(O7:O18)","v":15.1}]
[]
[null,null,null,null,null,null,null,null,null,{"$f":"+A5","v":2025},"mg/Nm3","Monthly mean of half-hourly averages","Highest half- hourly average","Monthly mean of  daily averages","Highest daily average"]
[null,null,null,null,null,null,null,null,null,"A2","Jan",3.7,47.5,3.5678571428571426,6.2]
[null,null,null,null,null,null,null,null,null,null,"Feb",2.5,7.6,2.4535714285714292,3.1]
[null,null,null,null,null,null,null,null,null,null,"Mar",2.2999999999999998,7.7,2.3322580645161284,3.6]
[null,null,null,null,null,null,null,null,null,null,"Apr",2.2000000000000002,36.799999999999997,2.2333333333333334,3.2]
[null,null,null,null,null,null,null,null,null,null,"May",2.5,28.8,2.4249999999999998,3.3]
[null,null,null,null,null,null,null,null,null,null,"Jun",2.9,26.5,2.7650000000000001,5.5]
[null,null,null,null,null,null,null,null,null,null,"Jul",2.6,5.9,2.645161290322581,3.4]
[null,null,null,null,null,null,null,null,null,null,"Aug",2.8,10.9,2.8419354838709681,3.6]
[null,null,null,null,null,null,null,null,null,null,"Sep",2.9,13.3,2.8500000000000005,3.6]
[null,null,null,null,null,null,null,null,null,null,"Oct",3.479866990987984,50.604991912841797,3.479866990987984,4.3681459426879883]
[null,null,null,null,null,null,null,null,null,null,"Nov",4.5648846460121542,51.776885986328125,4.5648846460121542,7.2898550033569336]
[null,null,null,null,null,null,null,null,null,null,"Dec",3.6994849469873214,16.692230224609375,3.6994849469873214,4.6406087875366211]
[null,null,null,null,null,null,null,null,null,null,"Annual",{"$f":"AVERAGE(L22:L33)","v":3.0120197153322881},{"$f":"MAX(M22:M33)","v":51.776885986328125},{"$f":"AVERAGE(N22:N33)","v":2.9881961106215869},{"$f":"MAX(O22:O33)","v":7.2898550033569336}]
[]
[null,null,null,null,null,null,null,null,null,{"$f":"+A5","v":2025},"mg/Nm3","Monthly mean of half-hourly averages","Highest half- hourly average","Monthly mean of  daily averages","Highest daily average"]
[null,null,null,null,null,null,null,null,null,"A3","Jan"]
[null,null,null,null,null,null,null,null,null,null,"Feb"]
[null,null,null,null,null,null,null,null,null,null,"Mar"]
[null,null,null,null,null,null,null,null,null,null,"Apr"]
[null,null,null,null,null,null,null,null,null,null,"May"]
[null,null,null,null,null,null,null,null,null,null,"Jun"]
[null,null,null,null,null,null,null,null,null,null,"Jul"]
[null,null,null,null,null,null,null,null,null,null,"Aug"]
[null,null,null,null,null,null,null,null,null,null,"Sep"]
[null,null,null,null,null,null,null,null,null,null,"Oct"]
[null,null,null,null,null,null,null,null,null,null,"Nov"]
["Comments :",null,null,null,null,null,null,null,null,null,"Dec"]
[null,null,null,null,null,null,null,null,null,null,"Annual",{"$f":"AVERAGE(L37:L48)","v":{"$error":"#DIV/0!"}},{"$f":"MAX(M37:M48)","v":0},{"$f":"AVERAGE(N37:N48)","v":{"$error":"#DIV/0!"}},{"$f":"MAX(O37:O48)","v":0}]
[]
[null,null,null,null,null,null,null,null,null,{"$f":"+A5","v":2025},"mg/Nm3","Monthly mean of half-hourly averages","Highest half- hourly average","Monthly mean of  daily averages","Highest daily average"]
[null,null,null,null,null,null,null,null,null,"A4","Jan"]
[null,null,null,null,null,null,null,null,null,null,"Feb"]
[null,null,null,null,null,null,null,null,null,null,"Mar"]
[null,null,null,null,null,null,null,null,null,null,"Apr"]
[null,null,null,null,null,null,null,null,null,null,"May"]
[null,null,null,null,null,null,null,null,null,null,"Jun"]
[null,null,null,null,null,null,null,null,null,null,"Jul"]
[null,null,null,null,null,null,null,null,null,null,"Aug"]
[null,null,null,null,null,null,null,null,null,null,"Sep"]
[null,null,null,null,null,null,null,null,null,null,"Oct"]
[null,null,null,null,null,null,null,null,null,null,"Nov"]
[null,null,null,null,null,null,null,null,null,null,"Dec"]
[null,null,null,null,null,null,null,null,null,null,"Annual",{"$f":"AVERAGE(L52:L63)","v":{"$error":"#DIV/0!"}},{"$f":"MAX(M52:M63)","v":0},{"$f":"AVERAGE(N52:N63)","v":{"$error":"#DIV/0!"}},{"$f":"MAX(O52:O63)","v":0}]
[]
[null,null,null,null,null,null,null,null,null,{"$f":"+A5","v":2025},"mg/Nm3","Monthly mean of half-hourly averages","Highest half- hourly average","Monthly mean of  daily averages","Highest daily average"]
[null,null,null,null,null,null,null,null,null,"A5","Jan"]
[null,null,null,null,null,null,null,null,null,null,"Feb"]
[null,null,null,null,null,null,null,null,null,null,"Mar"]
[null,null,null,null,null,null,null,null,null,null,"Apr"]
[null,null,null,null,null,null,null,null,null,null,"May"]
[null,null,null,null,null,null,null,null,null,null,"Jun"]
[null,null,null,null,null,null,null,null,null,null,"Jul"]
[null,null,null,null,null,null,null,null,null,null,"Aug"]
[null,null,null,null,null,null,null,null,null,null,"Sep"]
[null,null,null,null,null,null,null,null,null,null,"Oct"]
[null,null,null,null,null,null,null,null,null,null,"Nov"]
[null,null,null,null,null,null,null,null,null,null,"Dec"]
[null,null,null,null,null,null,null,null,null,null,"Annual",{"$f":"AVERAGE(L67:L78)","v":{"$error":"#DIV/0!"}},{"$f":"MAX(M67:M78)","v":0},{"$f":"AVERAGE(N67:N78)","v":{"$error":"#DIV/0!"}},{"$f":"MAX(O67:O78)","v":0}]

{"sheet":"NH3","index":21,"n_rows":79,"n_cols":17,"rows_kept":79,"cut":false,"hidden":false,"merged":[[3,16,7,18],[9,16,11,18],[12,16,15,18],[66,9,78,9],[4,1,4,3],[4,4,4,6],[4,9,4,14],[6,9,18,9],[21,9,33,9],[36,9,48,9],[47,0,47,6],[48,0,51,6],[51,9,63,9],[18,4,18,6]]}
[{"$f":"+'Cover Page'!$B$29","v":"Annual Performance Report 2025"},null,null,null,{"$f":"+'Cover Page'!$B$33","v":"Suffolk EfW"}]
[]
["Monitoring of Ammnonia emissions ",null,null,"Whole Installation",null,null,"See  Notes in Cell Q3",null,null,{"$f":"+A3","v":"Monitoring of Ammnonia emissions "},null,null,null,"Per Combustion Line",null,null,"Notes:"]
[null,null,null,null,null,null,null,null,null,null,null,null,null,null,null,null,"User to add logic to complete Whole installation, Table A5:G18. From the data in Per Combustion Line, Table J6:O79, subject to No. of lines installed"]
[{"$f":"+'Cover Page'!C39","v":2025},"1/2 Hourly Reference Periods",null,null,"Daily Reference Periods"]
["mg/Nm3","1/2 hourly NH3 ELV","Monthly mean of half-hourly averages","Highest half- hourly average","Daily NH3 ELV","Monthly mean of  daily averages","Highest daily average",null,null,{"$f":"+A5","v":2025},"mg/Nm3","Monthly mean of half-hourly averages","Highest half- hourly average","Monthly mean of  daily averages","Highest daily average"]
["Jan","None",{"$f":"AVERAGE(L7,L22)","v":0.6},{"$f":"MAX(M7,M22)","v":9},15,{"$f":"AVERAGE(N7,N22)","v":0.59458525345622126},{"$f":"MAX(O7,O22)","v":1.7},null,null,"A1","Jan",0.6,4.5,0.56774193548387109,1]
["Feb",{"$f":"+B7","v":"None"},{"$f":"AVERAGE(L8,L23)","v":0.5},{"$f":"MAX(M8,M23)","v":5.3},15,{"$f":"AVERAGE(N8,N23)","v":0.52321428571428563},{"$f":"MAX(O8,O23)","v":1.1000000000000001},null,null,null,"Feb",0.6,3.2,0.6071428571428571,1.1000000000000001]
["Mar",{"$f":"+B8","v":"None"},0.30000000000000004,6.1,15,0.32031063321385905,0.7,null,null,null,"Mar",0.4,6.1,0.41481481481481491,0.7,null,"Whole Installation table A5:G18:"]
["Apr","None",0.30000000000000004,6.3,15,0.31303921568627452,0.6,null,null,null,"Apr",0.4,6.3,0.42941176470588233,0.6,null,"Mean: for 1/2 hourly and daily periods calculate mean of values across all operational combustion lines for the month"]
["May","None",0.55000000000000004,5.4,15,0.51130952380952377,1.3,null,null,null,"May",0.8,5.4,0.71428571428571419,1.3]
["Jun","None",0.4,5,15,0.35663793103448282,1,null,null,null,"Jun",0.6,5,0.54827586206896561,1]
["Jul","None",0.30000000000000004,1.4,15,0.30322580645161296,0.6,null,null,null,"Jul",0.4,1.4,0.37741935483870975,0.5,null,"Maximum: for 1/2 hourly and daily periods use the highest value across all operational combustion lines for the month"]
["Aug","None",0.35,2.1,15,0.35806451612903234,0.8,null,null,null,"Aug",0.4,1.7,0.42903225806451623,0.8]
["Sep","None",0.35,1.4,15,0.32666666666666677,0.6,null,null,null,"Sep",0.4,1.1000000000000001,0.38666666666666677,0.6]
["Oct","None",0.47453859868521309,5.2200021743774414,15,0.47453859868521309,1.1476379632949829,null,null,null,"Oct",0.65917652576361729,2.8392620086669922,0.65917652576361729,1.1476379632949829]
["Nov","None",0.69083654922987936,7.4637022018432617,15,0.69083654922987936,2.1499340534210205,null,null,null,"Nov",0.76358885325314774,3.6795361042022705,0.76358885325314774,1.2552629709243774]
["Dec","None",0.56071957127823158,3.8833730220794678,15,0.56071957127823158,1.272320032119751,null,null,null,"Dec",0.69293304726040816,3.8833730220794678,0.69293304726040816,1.272320032119751]
[null,null,null,null,null,null,null,null,null,null,"Annual",{"$f":"AVERAGE(L7:L18)","v":0.55964153552309781},{"$f":"MAX(M7:M18)","v":6.3},{"$f":"AVERAGE(N7:N18)","v":0.5492074711957643},{"$f":"MAX(O7:O18)","v":1.3}]
[]
[null,null,null,null,null,null,null,null,null,{"$f":"+A5","v":2025},"mg/Nm3","Monthly mean of half-hourly averages","Highest half- hourly average","Monthly mean of  daily averages","Highest daily average"]
[null,null,null,null,null,null,null,null,null,"A2","Jan",0.6,9,0.62142857142857155,1.7]
[null,null,null,null,null,null,null,null,null,null,"Feb",0.4,5.3,0.43928571428571422,0.8]
[null,null,null,null,null,null,null,null,null,null,"Mar",0.2,1.3,0.22580645161290316,0.6]
[null,null,null,null,null,null,null,null,null,null,"Apr",0.2,4.4000000000000004,0.19666666666666674,0.5]
[null,null,null,null,null,null,null,null,null,null,"May",0.3,3.2,0.3083333333333334,0.9]
[null,null,null,null,null,null,null,null,null,null,"Jun",0.2,3.6,0.16500000000000004,0.6]
[null,null,null,null,null,null,null,null,null,null,"Jul",0.2,1.3,0.22903225806451619,0.6]
[null,null,null,null,null,null,null,null,null,null,"Aug",0.3,2.1,0.2870967741935484,0.8]
[null,null,null,null,null,null,null,null,null,null,"Sep",0.3,1.4,0.26666666666666672,0.5]
[null,null,null,null,null,null,null,null,null,null,"Oct",0.28990067160680882,5.2200021743774414,0.28990067160680882,0.55777400732040405]
[null,null,null,null,null,null,null,null,null,null,"Nov",0.61808424520661109,7.4637022018432617,0.61808424520661109,2.1499340534210205]
[null,null,null,null,null,null,null,null,null,null,"Dec",0.42850609529605499,2.0060789585113525,0.42850609529605499,0.86293601989746094]
[null,null,null,null,null,null,null,null,null,null,"Annual",{"$f":"AVERAGE(L22:L33)","v":0.33637425100912283},{"$f":"MAX(M22:M33)","v":9},{"$f":"AVERAGE(N22:N33)","v":0.33965062069678292},{"$f":"MAX(O22:O33)","v":2.1499340534210205}]
[]
[null,null,null,null,null,null,null,null,null,{"$f":"+A5","v":2025},"mg/Nm3","Monthly mean of half-hourly averages","Highest half- hourly average","Monthly mean of  daily averages","Highest daily average"]
[null,null,null,null,null,null,null,null,null,"A3","Jan"]
[null,null,null,null,null,null,null,null,null,null,"Feb"]
[null,null,null,null,null,null,null,null,null,null,"Mar"]
[null,null,null,null,null,null,null,null,null,null,"Apr"]
[null,null,null,null,null,null,null,null,null,null,"May"]
[null,null,null,null,null,null,null,null,null,null,"Jun"]
[null,null,null,null,null,null,null,null,null,null,"Jul"]
[null,null,null,null,null,null,null,null,null,null,"Aug"]
[null,null,null,null,null,null,null,null,null,null,"Sep"]
[null,null,null,null,null,null,null,null,null,null,"Oct"]
[null,null,null,null,null,null,null,null,null,null,"Nov"]
["Comments :",null,null,null,null,null,null,null,null,null,"Dec"]
["An indicated ELV value of zero in the table above means that no ammonia limit is/was set in the permit.  ",null,null,null,null,null,null,null,null,null,"Annual",{"$f":"AVERAGE(L37:L48)","v":{"$error":"#DIV/0!"}},{"$f":"MAX(M37:M48)","v":0},{"$f":"AVERAGE(N37:N48)","v":{"$error":"#DIV/0!"}},{"$f":"MAX(O37:O48)","v":0}]
[]
[null,null,null,null,null,null,null,null,null,{"$f":"+A5","v":2025},"mg/Nm3","Monthly mean of half-hourly averages","Highest half- hourly average","Monthly mean of  daily averages","Highest daily average"]
[null,null,null,null,null,null,null,null,null,"A4","Jan"]
[null,null,null,null,null,null,null,null,null,null,"Feb"]
[null,null,null,null,null,null,null,null,null,null,"Mar"]
[null,null,null,null,null,null,null,null,null,null,"Apr"]
[null,null,null,null,null,null,null,null,null,null,"May"]
[null,null,null,null,null,null,null,null,null,null,"Jun"]
[null,null,null,null,null,null,null,null,null,null,"Jul"]
[null,null,null,null,null,null,null,null,null,null,"Aug"]
[null,null,null,null,null,null,null,null,null,null,"Sep"]
[null,null,null,null,null,null,null,null,null,null,"Oct"]
[null,null,null,null,null,null,null,null,null,null,"Nov"]
[null,null,null,null,null,null,null,null,null,null,"Dec"]
[null,null,null,null,null,null,null,null,null,null,"Annual",{"$f":"AVERAGE(L52:L63)","v":{"$error":"#DIV/0!"}},{"$f":"MAX(M52:M63)","v":0},{"$f":"AVERAGE(N52:N63)","v":{"$error":"#DIV/0!"}},{"$f":"MAX(O52:O63)","v":0}]
[]
[null,null,null,null,null,null,null,null,null,{"$f":"+A5","v":2025},"mg/Nm3","Monthly mean of half-hourly averages","Highest half- hourly average","Monthly mean of  daily averages","Highest daily average"]
[null,null,null,null,null,null,null,null,null,"A5","Jan"]
[null,null,null,null,null,null,null,null,null,null,"Feb"]
[null,null,null,null,null,null,null,null,null,null,"Mar"]
[null,null,null,null,null,null,null,null,null,null,"Apr"]
[null,null,null,null,null,null,null,null,null,null,"May"]
[null,null,null,null,null,null,null,null,null,null,"Jun"]
[null,null,null,null,null,null,null,null,null,null,"Jul"]
[null,null,null,null,null,null,null,null,null,null,"Aug"]
[null,null,null,null,null,null,null,null,null,null,"Sep"]
[null,null,null,null,null,null,null,null,null,null,"Oct"]
[null,null,null,null,null,null,null,null,null,null,"Nov"]
[null,null,null,null,null,null,null,null,null,null,"Dec"]
[null,null,null,null,null,null,null,null,null,null,"Annual",{"$f":"AVERAGE(L67:L78)","v":{"$error":"#DIV/0!"}},{"$f":"MAX(M67:M78)","v":0},{"$f":"AVERAGE(N67:N78)","v":{"$error":"#DIV/0!"}},{"$f":"MAX(O67:O78)","v":0}]

{"sheet":"Template changes log","index":22,"n_rows":23,"n_cols":3,"rows_kept":23,"cut":false,"hidden":false,"merged":[]}
["Log of changes to template (Environment Agency use only)"]
[]
["Date","Description of change","New version number and date"]
["2024-01-16","Air (periodic) tab: corrected default O2 reference from 6 to 11% ","Version 23.5a (for incinerators) - 16/01/2024"]
["2024-09-23","Air (periodic) tab: corrected symbol for Thallium to Tl"]
["2024-09-23","Air (periodic) tab: removed last year's references to different emission limit values applying from 03/12/23 and updated all relevant ELVs"]
["2024-09-23","Tabs for continuously monitored pollutants (HCl, SO2 etc.): changed terminology in table headings to improve clarity"]
["2024-09-23","Tabs for continuously monitored pollutants (HCl, SO2 etc.): removed last year's references to different emission limit values applying from 03/12/23 and updated all relevant ELVs"]
["2024-09-23","Perf 1 tab: updated formula for water usage to report m3 rather than litres and corrected error with formula copying operator name"]
["2024-09-23","Operational Summary tab: table added on start-ups and shut-downs"]
["2024-09-23","Operational Summary tab: table added on dioxins and mercury protocols"]
["2024-09-23","Operational Summary tab: table added on AST, QAL 2 and calibration functions"]
["2024-09-23","CO2 N2O tab: various changes made to notes to reflect the fact that most plants should now have calibrated CEMS and flow meters + some have C14 samplers and more up to date industry data","Version 24a (for incinerators) - 23/09/24"]
["2024-11-08","CO2 N2O tab: Changed the N2O CO2 equivalence factor from 298 to 265 in line with recently updated government greenhouse gas figures: https://www.gov.uk/government/publications/greenhouse-gas-reporting-conversion-factors-2024"]
["2024-11-08","CO2 N2O tab: Added an additional requirement for municipal EfW plants to state the yearly average biogenic percentage of the waste by mass, and reference to a document which sets out a methodology for calculating NCV of waste from the results of C14 sampling."]
["2024-11-08","Permit Compliance tab: Two additional columns added + explanatory notes to the table entitled \"Summary of non-compliances under the permit\" to allow CCS scores to be stated where relevant. "]
["2024-11-08","Residue Quality tab: Note added explaining application of TOC and LOI limits and asking operators to report both metrics where measured. ","Version 24.1a (for incinerators) - 08/11/24"]
["2024-11-27","Operational Summary tab: table added on start-ups and shut-downs","Version 24.2a (for incinerators) - 27/11/24"]
["2025-11-27","Cover Page: Print as PDF and Print Report and pdf buttons deleted and blank columns removed; contents page deleted","Version 25.1a (for incinerators) - 27/11/25"]
["2025-11-27","Residue Quality tab renamed to \"Residues\", and Summary of residue handling table moved from Operational Summary tab to Residues tab."]
["2025-11-27","Various changes made to the Operational Data tab including\n•\tReformatting of the rows under the Operational data heading (Rows 3-8) to make it clearer what information is required. \n•\tAmendment of the rows under the Energy Usage / Export heading (Rows 26-32) to calculate an “indicative parasitic load” (now excluding energy imported)\n•\tAmendment of the unit for gas usage from cubic feet to cubic metres (Row 50) \n•\tSome amendments to the first 2 notes and other minor edits\n•\tDeleted \"Overall Availability, mean avg. of all lines, hrs\" row"]
["2025-11-27","Operational Summary tab: Note added requiring all emergency shut-downs be listed, irrespective of whether or not they were reportable. "]
["2025-11-27","CO2 N2O tab: Note added to ask operators to ensure that relevant data reported here matches that which will be submitted under the Pollution Inventory"]